Cogmind - Beta 12 --- EXPLORER MODE // 2023.06.26 @ 10:50:28 Player: PionFour Result: Escaped! Performance ------------- Evolutions (9) 4500 Regions Visited (32) 6400 Robots Destroyed (269) 1345 Value Destroyed (18494) 18494 Prototype IDs (73) 1460 Alien Tech Used (2) 400 Bonus (18857) 18857 TOTAL SCORE: 51456 Bonus ------- High Alert Combat Kills 2625 Follower Combat Kills 6882 Entered Garrisons 1800 Used RIF Installer 4500 Entered DSFs 500 Aligned with FarCom 300 Met Zhirov 300 Win 3000 Friendly Fire -1050 Cogmind --------- Core Integrity 1496/1600 Matter 222/300 Energy 300/330 System Corruption 1% Temperature Cool (14) Movement Hovering (42) Location To Epsilon Eridani Parts ------- > --- POWER (3) -------- Micro Antimatter Reactor Light Quantum Reactor Light Quantum Reactor > --- PROPULSION (7) --- Improved Antigrav System Improved Antigrav System Improved Gyrokinetic Inverter Improved Linear Gravjet Combat Antigrav System Combat Antigrav System Combat Linear Gravjet > --- UTILITY (13) ----- Experimental Heat Sink Medium Storage Unit Graphene Brace Experimental Thermal Defense Suite Improved Remote Force Field Advanced Hacking Suite Relay Coupler [C] (31) Relay Coupler [Sentry] (19) Relay Coupler [Demolisher] (40) Relay Coupler [Specialist] (74) Relay Coupler [Hunter] (1) Relay Coupler [Heavy] (32) Long-range Tractor Beam > --- WEAPON (3) ------- Enhanced Quantum Rifle Advanced Micro-nuke Launcher Advanced Remote Datajack > --- INVENTORY (10) --- Light Antimatter Reactor Large Storage Unit Advanced Phase Shifter System Shield Relay Coupler [C] (71) Improved Component Analysis Suite HERF Cannon Enhanced Nova Cannon Advanced Datajack Advanced Remote Datajack Peak State ------------ > --- POWER ------------ Micro Antimatter Reactor Light Quantum Reactor Light Quantum Reactor > --- PROPULSION ------- Improved Antigrav System Improved Antigrav System Improved Gyrokinetic Inverter Improved Linear Gravjet Combat Antigrav System Combat Antigrav System Combat Linear Gravjet > --- UTILITY ---------- Experimental Heat Sink Medium Storage Unit Matter Filter Graphene Brace Experimental Thermal Defense Suite Improved Remote Force Field Advanced Hacking Suite Relay Coupler [C] Relay Coupler [Sentry] Relay Coupler [Demolisher] Relay Coupler [Specialist] Relay Coupler [Hunter] Relay Coupler [Heavy] > --- WEAPON ----------- Enhanced Quantum Rifle Advanced Micro-nuke Launcher Advanced Remote Datajack > --- INVENTORY -------- Light Antimatter Reactor Large Storage Unit Advanced Phase Shifter System Shield Relay Coupler [C] Improved Component Analysis Suite HERF Cannon Enhanced Nova Cannon Advanced Datajack Advanced Remote Datajack [Rating: 186] Favorites ----------- Power Light Quantum Reactor Engine Ion Engine Power Core Light Nuclear Core Reactor Light Quantum Reactor Propulsion Wheel Treads Light Treads Leg Myomer Leg Wheel Wheel Hover Unit Improved Gyrokinetic Inverter Flight Unit VTOL Module Utility Medium Storage Unit Device Trap Scanner Storage Medium Storage Unit Processor Advanced Visual Processing Unit Hackware System Shield Protection Improved Utility Shielding Weapon Katana Energy Gun Medium Laser Energy Cannon Nova Cannon Ballistic Gun Assault Rifle Ballistic Cannon Gauss Cannon Launcher Fusion Bomb Launcher Special Weapon Remote Datajack Slashing Weapon Katana Special Melee Weapon Advanced Datajack Build | -11 -10 -10 -10 -9 -8 -8 -7 -7 -7 -7 -6 -6 -6 -6 -6 -6 -5 -5 -5 -5 -4 -4 -4 -4 -3 -3 -3 -2 -2 -1 -1 -1 ------- Run | Jun Mat Min Exi Min Mat Gar Fac Gar Fac Gar Fac Was Fac Gar Fac Gar Fac Gar Fac DSF Fac Upp Upp Zhi Pro Res Gar Res Gar Acc Gar Acc Slots Evolved 19 | . 1 . . . 4 . 2 . . . 2 . . . . . 2 . . . 2 . . . . 2 . 2 . 2 . . Power 2 | . . . . . 1 . . . . . . . . . . . . . . . 1 . . . . . . . . . . . Propulsion 5 | . . . . . 2 . 1 . . . . . . . . . . . . . 1 . . . . 1 . . . . . . Utility 11 | . 1 . . . 1 . 1 . . . 2 . . . . . 2 . . . . . . . . 1 . 1 . 2 . . Weapon 1 | . . . . . . . . . . . . . . . . . . . . . . . . . . . . 1 . . . . Parts Attached 631 | 13 13 12 3 . 34 6 67 30 8 24 16 3 9 24 7 31 23 27 5 13 32 15 14 12 8 52 60 7 20 9 12 22 Power 86 | 1 1 1 . . 7 . 13 4 1 5 . . 1 1 . 4 4 3 1 1 4 . 1 1 2 5 10 1 2 3 5 4 Engine 21 | 1 . 1 . . 3 . 8 . . . . . 1 . . 1 . 1 . . . . 1 . 1 2 1 . . . . . Core 34 | . 1 . . . 4 . 5 4 1 2 . . . 1 . 3 4 2 1 1 3 . . . . . 2 . . . . . Reactor 31 | . . . . . . . . . . 3 . . . . . . . . . . 1 . . 1 1 3 7 1 2 3 5 4 Propulsion 120 | 5 4 5 . . 9 . 16 12 . 3 2 . . 2 2 2 5 1 . 7 2 6 3 4 1 12 6 1 3 2 3 2 Treads 4 | 1 1 2 . . . . . . . . . . . . . . . . . . . . . . . . . . . . . . Leg 18 | 2 . . . . . . 4 . . . . . . . . . . . . . . 3 3 . 1 4 1 . . . . . Wheel 25 | 2 3 3 . . 9 . 8 . . . . . . . . . . . . . . . . . . . . . . . . . Hover 65 | . . . . . . . 4 6 . 3 2 . . 2 2 1 5 1 . 7 2 3 . 4 . 7 5 1 3 2 3 2 Flight 8 | . . . . . . . . 6 . . . . . . . 1 . . . . . . . . . 1 . . . . . . Utility 204 | 4 6 2 3 . 14 4 30 9 3 2 7 1 2 7 1 10 3 10 2 2 11 3 8 6 4 15 15 2 8 4 1 5 Device 113 | 3 2 2 3 . 10 2 22 5 1 . 3 1 1 . 1 5 1 3 2 . 4 1 7 3 3 9 9 2 3 1 . 4 Storage 11 | 1 1 . . . . . 1 . . . 1 . . . . . . 1 . 1 1 . . 2 . 1 1 . . . . . Processor 23 | . 3 . . . 4 . 1 . . . . . 1 . . . 2 1 . . 2 2 1 . 1 4 1 . . . . . Hackware 52 | . . . . . . 2 5 3 2 2 2 . . 7 . 5 . 5 . 1 4 . . 1 . 1 4 . 5 2 1 . Protection 5 | . . . . . . . 1 1 . . 1 . . . . . . . . . . . . . . . . . . 1 . 1 Artifact . | . . . . . . . . . . . . . . . . . . . . . . . . . . . . . . . . . Weapon 221 | 3 2 4 . . 4 2 8 5 4 14 7 2 6 14 4 15 11 13 2 3 15 6 2 1 1 20 29 3 7 . 3 11 Energy Gun 46 | 2 1 2 . . 2 . . . . 2 . 2 2 2 1 3 3 3 . 2 . 1 2 . 1 4 7 . 1 . . 3 Energy Cannon 18 | . . . . . . . . . . . . . . . . . . . . . . . . . . 7 8 . 2 . . 1 Ballistic Gun 14 | 1 . . . . . . 2 . . . . . . . . . 2 3 1 . 3 2 . . . . . . . . . . Ballistic Cannon 10 | . . . . . . . 1 1 . 1 1 . 3 2 . 1 . . . . . . . . . . . . . . . . Launcher 10 | . . . . . . . 1 . . . . . . . . . . . . . . . . . . 2 . 1 2 . 1 3 Special Weapon 49 | . 1 2 . . 1 . 2 1 1 4 2 . . 3 1 4 4 3 . . 8 1 . . . 2 3 2 1 . 1 2 Impact Weapon . | . . . . . . . . . . . . . . . . . . . . . . . . . . . . . . . . . Slashing Weapon 48 | . . . . . 1 1 2 2 2 3 3 . 1 4 1 4 2 4 1 1 4 2 . . . 4 6 . . . . . Piercing Weapon . | . . . . . . . . . . . . . . . . . . . . . . . . . . . . . . . . . Special Melee Weapon 26 | . . . . . . 1 . 1 1 4 1 . . 3 1 3 . . . . . . . 1 . 1 5 . 1 . 1 2 Unidentified Prototypes 7 | . . . 2 . . . 1 . . . . . . . . . . . . . . . . 4 . . . . . . . . Parts Lost 65 | . . 4 . . 2 . 13 3 . 1 . . 1 . . 4 . 2 . . 1 5 8 . 3 3 6 . 8 . 1 . Power 15 | . . 1 . . . . 2 . . . . . 1 . . 1 . . . . 1 . 2 . 1 2 2 . 2 . . . Propulsion 23 | . . 1 . . 2 . 6 2 . . . . . . . . . . . . . 4 5 . . . 1 . 2 . . . Utility 13 | . . . . . . . 2 1 . . . . . . . 2 . 2 . . . . 1 . 2 1 1 . 1 . . . Weapon 14 | . . 2 . . . . 3 . . 1 . . . . . 1 . . . . . 1 . . . . 2 . 3 . 1 . Highest Loss Streak 6 | . . 3 . . 1 . 4 2 . 1 . . 1 . . 2 . 1 . . 1 4 5 . 2 1 2 . 6 . 1 . To Critical Strikes . | . . . . . . . . . . . . . . . . . . . . . . . . . . . . . . . . . Average Slot Usage (%) 94 | . 100 99 100 100 99 100 80 96 100 99 92 92 92 92 87 85 94 99 100 99 99 90 84 82 93 93 92 93 96 96 96 99 Engine 3 | . . 9 12 12 6 . 7 . . . . . 2 3 . . . . . . . . 2 5 3 4 . . . . . . Core 5 | . 11 2 . . 9 16 5 13 14 9 . . . 2 6 9 11 10 11 11 13 7 3 . . . 1 . . . . . Reactor 3 | . . . . . . . . . . 4 12 12 9 6 6 1 . . . . 1 5 1 1 4 6 10 12 10 7 9 11 Leg 1 | . . . . . . . 2 7 . . . . . . . . . . . . . 4 11 8 5 . . . . . . . Wheel 10 | . 25 24 25 25 32 33 18 . . . . . . . . . . . . . . . . . . . . . . . . . Hover 15 | . . . . . . . 1 18 35 35 25 25 25 25 18 17 24 27 27 26 30 23 12 13 25 26 25 25 27 26 26 26 Device 11 | . 12 12 12 12 10 8 11 14 14 14 11 11 6 6 6 9 11 9 15 16 15 10 14 13 15 14 10 10 10 9 11 13 Storage 7 | . 12 12 12 12 8 8 5 2 . . . 6 6 6 6 6 5 7 11 7 6 5 5 5 10 9 8 8 4 3 3 3 Processor 6 | . 11 12 12 12 13 7 . . . . . . 5 . . . 9 8 . . 2 7 7 10 8 12 8 8 6 3 1 . Hackware 14 | . . . . . . 8 13 16 21 21 24 25 25 30 31 26 22 22 22 24 20 20 17 15 10 9 16 16 22 30 30 29 Energy Gun 6 | . 12 20 25 25 11 . . . . 2 . 7 8 1 1 1 1 1 . 1 . . 3 5 9 1 . 4 3 3 3 2 Special Weapon 1 | . . 3 . . . . . . 6 3 2 . . 2 4 4 4 3 5 3 1 2 . . . . 1 1 3 . 2 2 Slashing Weapon 3 | . . . . . 4 7 6 6 3 3 2 2 . 4 5 5 2 3 4 4 3 3 5 . . . 2 4 . . . . Special Melee Weapon 1 | . . . . . . 7 3 2 4 2 1 . . 1 . . . . . . . . . 4 . . . . . 3 2 . Naked Turns . | . . . . . . . . . . . . . . . . . . . . . . . . . . . . . . . . . Heaviest Build 129 | 18 91 93 91 91 101 111 129 38 21 38 56 56 49 41 40 46 47 51 53 54 69 65 50 49 73 87 101 87 88 98 94 95 Greatest Support 98 | 20 20 20 20 20 44 44 68 55 50 50 52 52 52 52 52 52 53 54 54 60 72 72 75 57 57 83 94 98 98 94 96 96 Greatest Overweight (x) 10 | . 8 8 4 4 3 2 10 . . . 1 1 . . . 1 . . . . . 2 1 1 1 2 1 . 1 1 . 1 Average Overweight (x) . | . 3 4 4 4 2 2 1 . . . . . . . . . . . . . . . . . . . . . . . . . Largest Inventory Capacity 25 | 10 25 25 25 25 25 25 25 10 5 5 10 10 10 10 10 10 10 10 10 10 10 10 10 10 10 10 10 10 10 10 10 10 Average Capacity 15 | 9 22 25 25 25 25 25 20 6 5 5 5 10 10 10 10 10 10 10 10 10 10 10 10 10 10 10 10 10 10 10 10 10 Most Carried 25 | 10 17 24 25 25 25 25 25 10 5 5 6 9 10 10 10 10 10 10 10 10 10 10 10 10 10 10 10 10 10 10 10 10 Average Carried 13 | 7 12 19 24 25 24 24 19 5 4 4 4 8 9 9 9 9 9 9 9 9 9 8 9 9 9 9 9 9 9 9 9 9 Final Capacity 25 | 10 25 25 25 25 25 25 10 5 5 5 10 10 10 10 10 10 10 10 10 10 10 10 10 10 10 10 10 10 10 10 10 10 Final Carried 25 | 10 17 24 25 25 25 25 4 5 5 5 6 9 10 9 10 8 10 10 10 10 10 9 10 10 9 10 9 9 10 10 10 10 Class Distribution -------------------- 33% | Hacker-Mutant 16% | Scavenger-Mutant 15% | Commander-Mutant 9% | Hacker-Scout 6% | Scavenger-Assassin 4% | Hacker-Assassin 3% | Bothacker-Mutant 3% | Botlord-Mutant 3% | Hacker-Skirmisher Dominant Class ---------------- Scavenger-Mutant | -10/Materials Scavenger-Mutant | -10/Mines Scavenger-Mutant | -10/Exiles Scavenger-Mutant | -9/Mines Scavenger-Assassin | -8/Materials Hacker-Mutant | -8/Garrison Hacker-Mutant | -7/Factory Hacker-Mutant | -7/Garrison Hacker-Mutant | -7/Factory Hacker-Mutant | -7/Garrison Hacker-Mutant | -6/Factory Hacker-Mutant | -6/Waste Hacker-Scout | -6/Factory Hacker-Mutant | -6/Garrison Hacker-Mutant | -6/Factory Hacker-Mutant | -6/Garrison Commander-Mutant | -5/Factory Commander-Mutant | -5/Garrison Commander-Mutant | -5/Factory Commander-Mutant | -5/DSF Commander-Mutant | -4/Factory Hacker-Mutant | -4/Upper Caves Hacker-Assassin | -4/Upper Caves Hacker-Assassin | -4/Zhirov Hacker-Mutant | -3/Proximity Caves Hacker-Scout | -3/Research Bothacker-Mutant | -3/Garrison Bothacker-Mutant | -2/Research Botlord-Mutant | -2/Garrison Commander-Mutant | -1/Access Commander-Mutant | -1/Garrison Commander-Mutant | -1/Access Resources | -11 -10 -10 -10 -9 -8 -8 -7 -7 -7 -7 -6 -6 -6 -6 -6 -6 -5 -5 -5 -5 -4 -4 -4 -4 -3 -3 -3 -2 -2 -1 -1 -1 ----------- Run | Jun Mat Min Exi Min Mat Gar Fac Gar Fac Gar Fac Was Fac Gar Fac Gar Fac Gar Fac DSF Fac Upp Upp Zhi Pro Res Gar Res Gar Acc Gar Acc Matter Collected 11003 | 378 211 95 . 46 348 15 576 448 217 316 236 220 104 434 90 390 352 491 34 208 830 65 298 . 110 855 1361 . 619 82 467 1107 Remotely 130 | . . . . . . . . . . . . . . . . . . . . . . . . . . . . . . . . 130 Salvage Created 11631 | 259 342 161 . . 1121 87 716 455 117 268 362 . 165 357 . 460 243 650 . 26 940 183 290 . 90 1341 1538 . 533 . 249 678 Parts 602 | 18 34 9 . . 63 4 43 32 5 5 13 . 11 19 . 25 14 25 . 3 63 8 8 . 6 59 49 . 23 . 15 48 Haulers Intercepted 10 | . 1 . . . 5 . . . . . 2 . . . . . . . . . . . . . . 1 . . . . . 1 Recyclers Shooed 3 | . . . . . . . 1 . . . 1 . . . . . . . . . . . . . . . . . . . . 1 Parts Field Recycled 13 | . . . . . . . 13 . . . . . . . . . . . . . . . . . . . . . . . . . Retrieved Matter 245 | . . . . . . . 245 . . . . . . . . . . . . . . . . . . . . . . . . . Parts Self-Destructed . | . . . . . . . . . . . . . . . . . . . . . . . . . . . . . . . . . Prevented . | . . . . . . . . . . . . . . . . . . . . . . . . . . . . . . . . . Kills | -11 -10 -10 -10 -9 -8 -8 -7 -7 -7 -7 -6 -6 -6 -6 -6 -6 -5 -5 -5 -5 -4 -4 -4 -4 -3 -3 -3 -2 -2 -1 -1 -1 ------- Run | Jun Mat Min Exi Min Mat Gar Fac Gar Fac Gar Fac Was Fac Gar Fac Gar Fac Gar Fac DSF Fac Upp Upp Zhi Pro Res Gar Res Gar Acc Gar Acc Combat Hostiles Destroyed 194 | . 6 8 . . 15 . 15 12 2 2 1 . 3 9 . 8 6 15 . 1 11 2 4 . 2 17 20 . 13 . 7 15 Melee 68 | . . . . . 7 . 8 7 2 1 . . . 7 . 7 3 8 . 1 3 2 4 . . 1 6 . 1 . . . Guns 53 | . 5 6 . . 7 . 1 . . . . . 1 1 . 1 3 7 . . 8 . . . 2 3 2 . . . . 6 Cannons 30 | . . 2 . . . . . 5 . 1 1 . 1 1 . . . . . . . . . . . 8 9 . 2 . . . AOE 37 | . 1 . . . . . 6 . . . . . . . . . . . . . . . . . . 5 . . 9 . 7 9 Classes Destroyed 22 | 3 5 1 . . 3 . 4 . . 1 . . . . . 1 . . . 1 . 1 . . 1 . 1 . . . . . Worker 13 | 4 . . . . 1 . 2 . . . . . . . . . . . . . 3 . . . . 1 . . . . . 2 Builder 18 | . 3 . . . 1 . 1 . . . . . . . . . . . . . 5 . . . . 1 . . . . . 7 Tunneler 8 | 4 1 . . . . . . . . . . . 1 . . . . . . . . . . . . . . . . . . 2 Hauler 10 | . 1 . . . 5 . . . . . 2 . . . . . . . . . . . . . . 1 . . . . . 1 Recycler 9 | 1 . . . . 1 . 3 . . . 1 . . . . . . . . . 1 . . . . 2 . . . . . . Minesweeper 1 | . . . . . . . . . . . . . . . . . . . . . . 1 . . . . . . . . . . Mechanic 2 | . . . . . 2 . . . . . . . . . . . . . . . . . . . . . . . . . . . Operator 4 | . . . . . 3 . . . . . . . . . . . . . . . . . . . . 1 . . . . . . Drone 1 | . . . . . . . . . . . . . . . . . . . . . . . . . 1 . . . . . . . Watcher 11 | . 2 . . . 1 . 1 . . . 4 . . . . . . . . . 2 . . . . 1 . . . . . . Swarmer 65 | . 2 2 . . 3 . 3 8 . . . . . 4 . . 3 8 . . 4 . . . . 4 2 . 10 . 6 6 Cutter 2 | . . . . . . . . . . . . . . . . . . . . 1 . . . . . . 1 . . . . . Grunt 41 | . 4 4 . . 6 . 3 . 1 . 1 . . 2 . 3 . 2 . . 4 . 2 . . 4 3 . . . 1 1 Brawler 2 | . . . . . . . . . . 1 . . . . . . . . . . . . . . . . 1 . . . . . Duelist 4 | . . . . . . . . . . . . . . . . 1 . . . . . . . . . 1 1 . . . . 1 Protector 2 | . . . . . . . 2 . . . . . . . . . . . . . . . . . . . . . . . . . Sentry 18 | . . . . . 6 . . 1 1 1 . . 2 1 . . . 1 . . 2 . . . 1 . 2 . . . . . Specialist 4 | . . . . . . . 1 . . . . . . . . 1 1 . . . . . . . . . . . . . . 1 Hunter 22 | . . . . . . . 2 . . . . . . . . 2 . 4 . . 1 2 2 . . 2 4 . . . 1 2 Programmer 30 | . . . . . . . 4 3 . . . . 1 2 . 1 2 . . . . . . . . 6 4 . 3 . . 4 Behemoth 2 | . . . . . . . . . . . . . . . . . . . . . . . . . . . 2 . . . . . Assembled 2 | . . 2 . . . . . . . . . . . . . . . . . . . . . . . . . . . . . . Best Kill Streak 9 | 2 6 2 . . 3 . 7 5 1 1 5 . 1 3 . 2 2 9 . 1 9 2 2 . 1 9 5 . 7 . 5 8 Combat Bots Only 9 | . 2 2 . . 2 . 6 5 1 1 1 . 1 3 . 2 2 9 . 1 4 2 2 . 1 6 5 . 7 . 5 5 Max Kills in Single Turn 5 | 1 2 1 . . 1 . 4 1 1 1 1 . 1 1 . 1 1 1 . 1 2 1 1 . 1 2 1 . 3 . 5 5 Gunslinging . | . . . . . . . . . . . . . . . . . . . . . . . . . . . . . . . . . Exploded 5 | . 1 . . . . . 3 . . . . . . . . . . . . . . . . . . 2 . . 3 . 5 2 Melee 1 | . . . . . 1 . 1 1 1 1 . . . 1 . 1 1 1 . 1 1 1 1 . . 1 1 . 1 . . . Uniques/NPCs Destroyed . | . . . . . . . . . . . . . . . . . . . . . . . . . . . . . . . . . Combat | -11 -10 -10 -10 -9 -8 -8 -7 -7 -7 -7 -6 -6 -6 -6 -6 -6 -5 -5 -5 -5 -4 -4 -4 -4 -3 -3 -3 -2 -2 -1 -1 -1 -------- Run | Jun Mat Min Exi Min Mat Gar Fac Gar Fac Gar Fac Was Fac Gar Fac Gar Fac Gar Fac DSF Fac Upp Upp Zhi Pro Res Gar Res Gar Acc Gar Acc Damage Taken 12794 | . 87 522 . . 396 . 2526 492 97 236 50 . 267 195 25 660 73 399 13 107 538 403 788 . 256 805 2163 . 917 74 265 440 Core 2162 | . 12 202 . . 80 . 481 65 41 58 11 . 9 76 6 133 5 58 . 4 49 26 104 . 66 177 305 . 90 18 43 43 Absorbed by Shields 1645 | . . . . . . . . . . . . . . . . 22 55 122 12 41 43 . . . 137 193 701 . 6 . 52 261 Redirected to Shielding 10 | . . . . . . . . . . . . . . . . . . . . . . . . . . . . . . . . 10 Regen/Repaired (Parts) 443 | . . . . . 52 . . . . . . 2 77 22 3 86 41 68 4 . 35 . . . . 53 . . . . . . Core Remaining (%) 69 | 100 . . . 14 . 85 . . . 7 . . . . . 72 . . . 93 . . . . 71 . 62 . 93 . . 93 Volleys Fired 946 | 16 29 31 . . 57 . 16 22 3 23 34 20 17 30 7 29 35 45 13 4 100 12 1 . 8 63 105 2 74 5 39 106 Largest 2 | 2 2 2 . . 2 . 1 1 1 1 1 2 2 2 1 1 1 1 1 1 1 1 1 . 2 2 2 1 2 2 1 2 Hottest 233 | 70 85 165 . . 134 . 57 57 5 50 48 150 150 123 94 94 75 94 33 94 94 94 88 . 188 226 233 10 185 185 120 153 Shots Fired 1185 | 32 57 42 . . 100 . 16 22 3 23 34 29 29 31 7 29 35 45 13 4 101 12 1 . 19 116 143 2 84 7 39 110 Gun 560 | 32 57 29 . . 99 . 7 . . 13 . 18 17 5 3 11 12 28 2 2 72 2 1 . 19 35 29 . 17 4 16 30 Cannon 288 | . . . . . . . 1 20 . 6 30 11 12 11 . 3 . . . . . . . . . 72 80 . 32 3 4 3 Launcher 55 | . . . . . . . 5 . . . . . . . . . . . . . . . . . . 7 . . 11 . 5 27 Special 282 | . . 13 . . 1 . 3 2 3 4 4 . . 15 4 15 23 17 11 2 29 10 . . . 2 34 2 24 . 14 50 Kinetic 243 | 16 29 . . . . . 8 20 . 6 30 11 12 11 . 3 8 16 2 . 71 . . . . . . . . . . . Thermal 603 | 16 28 42 . . 100 . . . . . . 18 17 5 3 11 4 12 . 2 1 2 1 . 19 107 109 . 49 7 20 30 Explosive 55 | . . . . . . . 5 . . . . . . . . . . . . . . . . . . 7 . . 11 . 5 27 Electromagnetic 16 | . . . . . . . . . . 13 . . . . . . . . . . . . . . . . . . . . . 3 Robot Hit Streak 54 | 13 21 23 . . 54 . 11 5 8 13 8 11 10 13 19 23 22 14 4 2 27 15 . . 9 21 26 2 21 6 7 19 Robot Miss Streak 4 | 2 2 2 . . 2 . 1 3 . 1 2 2 3 2 . 1 1 1 4 1 1 . 1 . 2 3 1 . 1 1 2 1 Penetration Max 1 | . . . . . . . . . . . . . . . . . . . . . 1 . . . . . . . . . . . Secondary Targets 1 | . 1 . . . . . . . . . . . . . . . . . . . . . . . . . . . . . . . Max Gunslinging Chain 1 | . 1 . . . . . . . . . . . . . . . . . . . . . . . . . . . . . . . Shots Hit Robots 1202 | 22 37 29 . . 104 15 64 29 17 36 32 20 20 38 7 51 39 52 7 5 95 21 22 2 12 103 163 2 63 10 17 68 Core Hits 434 | 10 17 14 . . 37 3 37 12 2 12 11 1 5 9 . 14 7 19 . 2 35 6 8 . 4 42 35 . 25 1 22 44 Critical Kills 10 | . 1 . . . . . . 3 . . . . . . . . 1 1 . . . . . . . . 3 . 1 . . . Critical Parts Destroyed 7 | . 1 . . . . . . 4 . . . . . . . . . 2 . . . . . . . . . . . . . . Critical Strikes 64 | . 4 1 . . 5 . 5 7 . 2 4 1 1 . . 4 1 4 . . 1 3 3 . . 1 9 . 8 . . . Burn 7 | . 2 1 . . 3 . . . . . . . . . . . . 1 . . . . . . . . . . . . . . Meltdown 4 | . . . . . . . . . . . . . . . . . . . . . . . . . . . 3 . 1 . . . Destroy 13 | . 2 . . . . . . 7 . . . . . . . . 1 3 . . . . . . . . . . . . . . Blast 6 | . . . . . . . . . . 1 3 1 1 . . . . . . . . . . . . . . . . . . . Sever 34 | . . . . . 2 . 5 . . 1 1 . . . . 4 . . . . 1 3 3 . . 1 6 . 7 . . . Melee Attacks 638 | . . . . . 51 28 62 43 15 27 6 . 4 45 9 65 13 28 4 3 30 15 22 2 . 18 119 . 22 4 3 . Impact . | . . . . . . . . . . . . . . . . . . . . . . . . . . . . . . . . . Slashing 566 | . . . . . 51 21 47 40 8 22 5 . 4 45 8 64 13 28 4 3 30 15 22 . . 18 107 . 11 . . . Piercing . | . . . . . . . . . . . . . . . . . . . . . . . . . . . . . . . . . Sneak Attacks 94 | . . . . . 5 6 21 2 9 4 2 . . 6 . 6 2 1 . . 7 1 . 2 . 5 7 . 7 1 . . Combat Hostiles 35 | . . . . . . 3 . 2 2 1 . . . 6 . 5 1 1 . . 3 . . . . . 7 . 4 . . . Follow-up Attacks . | . . . . . . . . . . . . . . . . . . . . . . . . . . . . . . . . . Damage Inflicted 37990 | 274 728 451 . . 2291 653 2665 827 305 773 783 587 489 1038 58 1518 548 1178 . 134 2340 479 865 . 339 5189 5193 . 2554 220 1815 3696 Guns 9141 | 274 481 355 . . 1343 . 146 . . 98 . 294 266 83 58 234 243 534 . 55 1451 57 . . 339 946 776 . 298 90 63 657 Cannons 7553 | . . . . . . . 10 268 . 144 603 293 223 28 . 31 . . . . . . . . . 2359 2924 . 540 130 . . Explosions 8667 | . 247 . . . . . 988 . . . . . . . . . . . . . . . . . . 1151 . . 1490 . 1752 3039 Melee 12533 | . . . . . 948 653 1521 559 305 531 180 . . 927 . 1253 305 644 . 79 889 422 865 . . 733 1493 . 226 . . . Ramming . | . . . . . . . . . . . . . . . . . . . . . . . . . . . . . . . . . Kinetic 4081 | 172 254 . . . . . 156 268 . 144 603 293 223 28 . 31 181 306 . . 1422 . . . . . . . . . . . Thermal 12611 | 102 227 451 . . 1343 . . . . . . 294 266 83 58 234 62 228 . 55 29 57 . . 339 3305 3700 . 838 220 63 657 Explosive 8667 | . 247 . . . . . 988 . . . . . . . . . . . . . . . . . . 1151 . . 1490 . 1752 3039 Electromagnetic 98 | . . . . . . . . . . 98 . . . . . . . . . . . . . . . . . . . . . . Impact . | . . . . . . . . . . . . . . . . . . . . . . . . . . . . . . . . . Slashing 12533 | . . . . . 948 653 1521 559 305 531 180 . . 927 . 1253 305 644 . 79 889 422 865 . . 733 1493 . 226 . . . Piercing . | . . . . . . . . . . . . . . . . . . . . . . . . . . . . . . . . . Highest Corruption 6 | . . . . . 1 . 3 2 2 2 . . . . . . . . . . 1 1 1 1 1 3 6 . 4 . . 1 Average Corruption 2 | . . . . . 1 . 2 2 2 2 . . . . . . . . . . 1 1 1 1 1 2 4 . 3 . . 1 Corruption Purged 3 | . . . . . 1 . 2 . . . . . . . . . . . . . . . . . . . . . . . . . Corruption Blocked . | . . . . . . . . . . . . . . . . . . . . . . . . . . . . . . . . . Effects 120 | . . . . . 1 . 4 8 2 5 . . . . . . . . . . 10 4 2 . 8 23 36 . 13 . . 4 Message Errors 23 | . . . . . . . . 2 . . . . . . . . . . . . 1 1 . . . 6 7 . 5 . . 1 Matter Fused 39 | . . . . . 1 . . 5 1 1 . . . . . . . . . . 2 . 1 . 3 7 14 . 4 . . . Heat Flow Errors 10 | . . . . . . . 1 . 1 . . . . . . . . . . . 1 . . . 1 2 2 . 1 . . 1 Energy Discharges 21 | . . . . . . . . 1 . . . . . . . . . . . . 3 2 1 . 1 3 7 . 1 . . 2 Parts Rejected 3 | . . . . . . . . . . 1 . . . . . . . . . . 1 . . . . 1 . . . . . . Parts Fused 3 | . . . . . . . . . . 2 . . . . . . . . . . . . . . . . 1 . . . . . Data Loss (minor) 11 | . . . . . . . 2 . . 1 . . . . . . . . . . 1 1 . . . 2 4 . . . . . Data Loss (major) 4 | . . . . . . . 1 . . . . . . . . . . . . . . . . . . 1 1 . 1 . . . Misfires 4 | . . . . . . . . . . . . . . . . . . . . . 1 . . . 3 . . . . . . . Alerts 2 | . . . . . . . . . . . . . . . . . . . . . . . . . . 1 . . 1 . . . Overload Shots . | . . . . . . . . . . . . . . . . . . . . . . . . . . . . . . . . . Overflow Damage 1766 | . 9 . . . 126 64 146 101 39 . 3 . 20 108 . 24 53 . . . 86 . . . . 136 195 . 167 5 178 306 Projectiles 267 | . . . . . . . . . . . 3 . 20 . . . . . . . . . . . . 74 128 . 37 5 . . Explosions 626 | . 9 . . . . . 3 . . . . . . . . . . . . . . . . . . . . . 130 . 178 306 Melee 873 | . . . . . 126 64 143 101 39 . . . . 108 . 24 53 . . . 86 . . . . 62 67 . . . . . Knockbacks 9 | . . . . . . . . 2 . . 5 . 2 . . . . . . . . . . . . . . . . . . . Impact . | . . . . . . . . . . . . . . . . . . . . . . . . . . . . . . . . . Kinetic 9 | . . . . . . . . 2 . . 5 . 2 . . . . . . . . . . . . . . . . . . . Secondary . | . . . . . . . . . . . . . . . . . . . . . . . . . . . . . . . . . Self-Inflicted Damage 43 | . . . . . . . 43 . . . . . . . . . . . . . . . . . . . . . . . . . Shots 1 | . . . . . . . 1 . . . . . . . . . . . . . . . . . . . . . . . . . Rammed . | . . . . . . . . . . . . . . . . . . . . . . . . . . . . . . . . . Targets Rammed . | . . . . . . . . . . . . . . . . . . . . . . . . . . . . . . . . . Kicked . | . . . . . . . . . . . . . . . . . . . . . . . . . . . . . . . . . Crushed . | . . . . . . . . . . . . . . . . . . . . . . . . . . . . . . . . . Highest Temperature 454 | 45 93 316 . . 454 . 132 251 180 23 159 317 414 100 108 312 280 148 6 16 354 301 38 . 324 441 355 . 450 261 11 180 Average Temperature 98 | 13 29 108 . . 122 . 47 76 40 9 44 119 142 25 53 122 113 25 4 14 72 115 23 . 107 169 131 . 134 116 8 66 Received Heat Transfer 2992 | . 78 227 . . 243 . 831 135 63 90 27 . 63 75 12 208 6 42 . . 146 59 183 . 69 138 209 . 45 18 12 13 Effects 40 | . . 1 . . 6 . . . . . . 1 5 . . 2 1 . . . 6 1 . . . 6 2 . 6 3 . . Shutdowns 18 | . . . . . 5 . . . . . . . . . . . . . . . 2 . . . . 5 . . 6 . . . Energy Bleed 8 | . . 1 . . . . . . . . . 1 2 . . 2 1 . . . 1 . . . . . . . . . . . Interference 10 | . . . . . . . . . . . . . 3 . . . . . . . 2 . . . . . 2 . . 3 . . Matter Decay 2 | . . . . . . . . . . . . . . . . . . . . . . 1 . . . 1 . . . . . . Short Circuit 1 | . . . . . . . . . . . . . . . . . . . . . 1 . . . . . . . . . . . Damage (minor) 1 | . . . . . 1 . . . . . . . . . . . . . . . . . . . . . . . . . . . Siege Activations . | . . . . . . . . . . . . . . . . . . . . . . . . . . . . . . . . . Robots Corrupted . | . . . . . . . . . . . . . . . . . . . . . . . . . . . . . . . . . Combat Hostiles . | . . . . . . . . . . . . . . . . . . . . . . . . . . . . . . . . . Parts Fried 1 | . . . . . . . . . . . . . . . . . . . . . . . . . . . . . . . . 1 Impact Corruptions . | . . . . . . . . . . . . . . . . . . . . . . . . . . . . . . . . . Robots Melted 7 | . . . . . 2 . . . . . . . 1 . . . . . . . . . . . . . 3 . 1 . . . Combat Hostiles 6 | . . . . . 1 . . . . . . . 1 . . . . . . . . . . . . . 3 . 1 . . . Parts Melted 43 | . 3 2 . . 9 . 1 . . . . . 3 . . . . . . . 1 . . . . 5 13 . 5 . . 1 Heat Transferred 16269 | 296 777 1199 . . 3182 . . . . . . 518 444 148 74 296 111 407 . 74 37 74 . . 444 3219 3404 . 528 222 74 741 Parts Sabotaged . | . . . . . . . . . . . . . . . . . . . . . . . . . . . . . . . . . Parts Stolen . | . . . . . . . . . . . . . . . . . . . . . . . . . . . . . . . . . Parts Stripped . | . . . . . . . . . . . . . . . . . . . . . . . . . . . . . . . . . Power Chain Reactions . | . . . . . . . . . . . . . . . . . . . . . . . . . . . . . . . . . Missiles Intercepted . | . . . . . . . . . . . . . . . . . . . . . . . . . . . . . . . . . Alert | -11 -10 -10 -10 -9 -8 -8 -7 -7 -7 -7 -6 -6 -6 -6 -6 -6 -5 -5 -5 -5 -4 -4 -4 -4 -3 -3 -3 -2 -2 -1 -1 -1 ------- Run | Jun Mat Min Exi Min Mat Gar Fac Gar Fac Gar Fac Was Fac Gar Fac Gar Fac Gar Fac DSF Fac Upp Upp Zhi Pro Res Gar Res Gar Acc Gar Acc Peak Influence 2248 | 40 167 105 . . 147 461 358 622 321 527 616 153 522 1250 520 1252 1005 1295 561 488 1144 . . . . 464 1077 446 1303 676 1573 2248 Initial 715 | . 2 . . . . . 179 45 242 172 205 147 81 281 487 268 487 455 504 302 190 . . . . 310 . 446 260 592 425 715 Average 406 | 16 53 30 . . 52 243 109 369 282 370 331 140 283 840 430 839 724 958 552 389 616 . . . . 189 586 446 924 632 1117 1385 Maximum Alert Level 5 | . . . . . . 2 1 2 1 2 2 . 2 4 2 4 3 4 2 2 4 . . . . 2 3 2 4 2 4 5 Low Security (%) 46 | 100 100 100 . 100 100 36 85 26 . 3 . 100 35 . . . . . . . 5 . . . . 57 15 . . . . . Level 1 13 | . . . . . . 47 14 15 100 52 77 . 35 8 17 5 9 . . 75 19 . . . . 29 15 . 1 . . . Level 2 17 | . . . . . . 15 . 58 . 43 22 . 28 21 82 21 33 18 100 24 29 . . . . 13 32 100 32 100 19 . Level 3 15 | . . . . . . . . . . . . . . 56 . 51 57 55 . . 42 . . . . . 36 . 33 . 25 31 Level 4 6 | . . . . . . . . . . . . . . 13 . 21 . 25 . . 2 . . . . . . . 32 . 54 42 Level 5 1 | . . . . . . . . . . . . . . . . . . . . . . . . . . . . . . . . 26 High Security . | . . . . . . . . . . . . . . . . . . . . . . . . . . . . . . . . . Max Security . | . . . . . . . . . . . . . . . . . . . . . . . . . . . . . . . . . Squads Dispatched 43 | . . . . . 3 . 6 . . . 5 . 1 . 1 . 4 . 1 1 4 . . . . 4 . 1 . . . 12 Investigation 8 | . . . . . 1 . 1 . . . 1 . . . . . . . 1 . 2 . . . . 1 . 1 . . . . Extermination 9 | . . . . . . . 3 . . . . . 1 . . . 1 . . . . . . . . 2 . . . . . 2 Reinforcement 13 | . . . . . 2 . 2 . . . 4 . . . . . 2 . . 1 . . . . . . . . . . . 2 Assault 5 | . . . . . . . . . . . . . . . . . 1 . . . 1 . . . . . . . . . . 3 Garrison 8 | . . . . . . . . . . . . . . . 1 . . . . . 1 . . . . 1 . . . . . 5 Intercept . | . . . . . . . . . . . . . . . . . . . . . . . . . . . . . . . . . Searches Triggered 1 | . . . . . . . . . . . . . . . . . . . . . . . . . . 1 . . . . . . Construction Impeded 3 | . . . . . . . . . . . 1 . . . . . 1 . . . . . . . . . . . . . . 1 Haulers Reinforced 3 | . . . . . . . . . . . 1 . . . . . 1 . . . . . . . . . . . . . . 1 Active Scanning Responses . | . . . . . . . . . . . . . . . . . . . . . . . . . . . . . . . . . Cargo Convoy Interrupts 1 | . . . . . . . 1 . . . . . . . . . . . . . . . . . . . . . . . . . Stealth | -11 -10 -10 -10 -9 -8 -8 -7 -7 -7 -7 -6 -6 -6 -6 -6 -6 -5 -5 -5 -5 -4 -4 -4 -4 -3 -3 -3 -2 -2 -1 -1 -1 --------- Run | Jun Mat Min Exi Min Mat Gar Fac Gar Fac Gar Fac Was Fac Gar Fac Gar Fac Gar Fac DSF Fac Upp Upp Zhi Pro Res Gar Res Gar Acc Gar Acc Distress Signals 10 | . . . . . 2 . 1 . . . 2 . 1 . . . . . . . 2 . . . . . . . . . . 2 Communications Jammed 29 | . . . . . . . . . . . . . . 1 . . . . . 1 12 . . . . . . . . . . 15 Distress Signals 27 | . . . . . . . . . . . . . . 1 . . . . . . 12 . . . . . . . . . . 14 Times Spotted 525 | . 13 26 . . 27 . 34 28 3 15 15 7 8 22 3 29 24 32 4 7 42 12 4 . 4 24 36 1 35 2 25 43 Peak Tracking Total 12 | . 3 12 . . 4 . 10 9 2 3 4 3 3 5 1 4 7 7 2 4 11 10 2 . 2 5 3 1 6 2 6 8 Tactical Retreats 33 | . . . . . . . 7 7 . . 2 1 . . . 1 . 2 . . 3 5 . . 1 1 2 . . . . 1 Traps | -11 -10 -10 -10 -9 -8 -8 -7 -7 -7 -7 -6 -6 -6 -6 -6 -6 -5 -5 -5 -5 -4 -4 -4 -4 -3 -3 -3 -2 -2 -1 -1 -1 ------- Run | Jun Mat Min Exi Min Mat Gar Fac Gar Fac Gar Fac Was Fac Gar Fac Gar Fac Gar Fac DSF Fac Upp Upp Zhi Pro Res Gar Res Gar Acc Gar Acc Traps Triggered 30 | . . 1 . . 1 4 7 . . 1 1 . 1 2 . 5 . . . 1 . . . . . . . . 5 . 1 . Indirectly . | . . . . . . . . . . . . . . . . . . . . . . . . . . . . . . . . . Trap Hack Attempts 171 | . . . . . . . . . 22 7 . . . 22 . 15 . . . . . . . . . . 24 . . . 36 45 Triggered . | . . . . . . . . . . . . . . . . . . . . . . . . . . . . . . . . . Disarmed 7 | . . . . . . . . . . . . . . 2 . 2 . . . . . . . . . . 2 . . . 1 . Reprogrammed 36 | . . . . . . . . . 3 3 . . . 5 . 1 . . . . . . . . . . 4 . . . 8 12 Reused 6 | . . . . . 3 . 2 . . . . . . . . 1 . . . . . . . . . . . . . . . . Traps Reconfigurated 21 | . . . . . 11 . 10 . . . . . . . . . . . . . . . . . . . . . . . . . Traps Extracted . | . . . . . . . . . . . . . . . . . . . . . . . . . . . . . . . . . Installed . | . . . . . . . . . . . . . . . . . . . . . . . . . . . . . . . . . Triggered 8 | . . . . . 3 . 2 . . . . . . . . 1 . . . . . 1 . . 1 . . . . . . . Most Traps Carried 1 | . . . . . . . . . . . . . . . . . . . . . . 1 1 . . . . . . . . . Machines | -11 -10 -10 -10 -9 -8 -8 -7 -7 -7 -7 -6 -6 -6 -6 -6 -6 -5 -5 -5 -5 -4 -4 -4 -4 -3 -3 -3 -2 -2 -1 -1 -1 ---------- Run | Jun Mat Min Exi Min Mat Gar Fac Gar Fac Gar Fac Was Fac Gar Fac Gar Fac Gar Fac DSF Fac Upp Upp Zhi Pro Res Gar Res Gar Acc Gar Acc Machines Disabled 85 | . 3 . . . . 4 2 1 . 3 4 . 1 12 . 7 3 5 . 1 9 1 . . . 1 6 . 11 . 4 7 Max in Single Turn 2 | . 2 . . . . 1 . 1 . 1 . . . 1 . 1 . 1 . . 1 1 . . . . 1 . 2 . 1 2 Garrison Access 4 | . . . . . . . . . . . . . . . . . . . . . 2 . . . . 1 . . . . . 1 Garrison Relay 36 | . . . . . . 4 . 1 . 2 . . . 6 . 5 . 5 . . . . . . . . 5 . 5 . 3 . Phase Generator 1 | . . . . . . . . . . . . . . . . . . 1 . . . . . . . . . . . . . . Energy Cycler 2 | . . . . . . . . . . . . . . . . . . . . . . . . . . . . . . . . 2 Machines Repaired . | . . . . . . . . . . . . . . . . . . . . . . . . . . . . . . . . . Machines Sabotaged . | . . . . . . . . . . . . . . . . . . . . . . . . . . . . . . . . . Overloaded Fab Kills . | . . . . . . . . . . . . . . . . . . . . . . . . . . . . . . . . . Hacking | -11 -10 -10 -10 -9 -8 -8 -7 -7 -7 -7 -6 -6 -6 -6 -6 -6 -5 -5 -5 -5 -4 -4 -4 -4 -3 -3 -3 -2 -2 -1 -1 -1 --------- Run | Jun Mat Min Exi Min Mat Gar Fac Gar Fac Gar Fac Was Fac Gar Fac Gar Fac Gar Fac DSF Fac Upp Upp Zhi Pro Res Gar Res Gar Acc Gar Acc Machines Accessed 131 | . 8 2 4 . 13 3 12 2 3 2 1 . 6 5 5 2 6 5 3 . 12 1 1 9 . 14 2 3 2 3 2 . Terminals 72 | . 6 . . . 8 3 9 2 1 2 . . 4 5 2 2 2 5 1 . 6 . . . . 6 2 1 2 1 2 . Fabricators 11 | . . . . . . . 2 . . . 1 . 1 . 1 . 1 . . . 2 . . . . 2 . . . 1 . . Repair Stations 5 | . . . . . 2 . . . . . . . . . . . 1 . . . 1 . . . . 1 . . . . . . Recycling Units 8 | . 2 . . . . . . . 1 . . . . . . . 1 . . . 1 . . . . 2 . 1 . . . . Scanalyzers 6 | . . . . . 2 . . . . . . . . . 1 . . . 2 . . . . . . 1 . . . . . . Garrison Access 12 | . . . . . 1 . 1 . 1 . . . 1 . 1 . 1 . . . 2 . . . . 2 . 1 . 1 . . Total Hacks 392 | . 23 2 49 . 42 4 26 2 11 4 1 . 17 9 11 4 13 7 8 . 41 1 1 48 . 46 6 6 3 5 2 . Successful 306 | . 17 2 49 . 32 3 19 2 7 1 1 . 16 6 9 2 9 5 7 . 24 1 1 48 . 28 3 6 2 4 2 . Failed 86 | . 6 . . . 10 1 7 . 4 3 . . 1 3 2 2 4 2 1 . 17 . . . . 18 3 . 1 1 . . Catastrophic 5 | . . . . . . . 1 . . 1 . . . . . . . . . . 2 . . . . 1 . . . . . . Database Lockouts . | . . . . . . . . . . . . . . . . . . . . . . . . . . . . . . . . . Manual 30 | . . . 1 . 1 . 2 . . 1 . . 1 4 3 1 1 . . . 7 . . . . 3 2 . 2 . 1 . Terminals 192 | . 19 . . . 26 4 21 2 5 4 . . 15 9 6 4 8 7 1 . 22 . . . . 23 6 3 3 2 2 . Fabricators 28 | . . . . . . . 4 . . . 1 . 1 . 2 . 1 . . . 10 . . . . 7 . . . 2 . . Repair Stations 12 | . . . . . 5 . . . . . . . . . . . 2 . . . 3 . . . . 2 . . . . . . Recycling Units 23 | . 4 . . . . . . . 5 . . . . . . . 1 . . . 2 . . . . 9 . 2 . . . . Scanalyzers 19 | . . . . . 8 . . . . . . . . . 2 . . . 7 . . . . . . 2 . . . . . . Garrison Access 17 | . . . . . 3 . 1 . 1 . . . 1 . 1 . 1 . . . 4 . . . . 3 . 1 . 1 . . Terminal Hacks 231 | . 14 2 49 . 18 3 15 2 4 1 . . 14 6 5 2 5 5 1 . 11 1 1 48 . 13 3 3 2 1 2 . Record 91 | . . . 49 . 1 . 2 . 1 . . . 2 . . . . . . . . . . 36 . . . . . . . . Part Schematic 7 | . . . . . . . 1 . . . . . . . . . 1 . . . 1 . . 4 . . . . . . . . Robot Schematic 1 | . . . . . . . . . . . . . . . . . . . . . . . . . . 1 . . . . . . Robot Analysis 8 | . 2 . . . . . . . . . . . . . . . . . . . 1 . . 4 . 1 . . . . . . Prototype ID Bank 15 | . 1 . . . 1 . 2 . . . . . 1 . . . 2 . . . 2 . . 4 . 1 . . . 1 . . Open Door 8 | . . 2 . . . 1 . . . . . . . 1 . . . 1 . . . 1 1 . . . . . 1 . . . Open DSF 2 | . . . . . . . 1 . . . . . . . . . . . 1 . . . . . . . . . . . . . Branch Access Points 4 | . . . . . . . 1 . 1 . . . . . . . . . . . 1 . . . . 1 . . . . . . Emergency Access Points 8 | . . . . . . 1 1 1 . 1 . . . 1 . 1 . 1 . . . . . . . . 1 . . . . . Machine Index 3 | . . . . . 1 . . . . . . . 1 . 1 . . . . . . . . . . . . . . . . . Terminal Index 7 | . . . . . 1 . 1 . . . . . 1 1 1 . . . . . 1 . . . . 1 . . . . . . Fabricator Index 2 | . . . . . . . 1 . . . . . . . . . 1 . . . . . . . . . . . . . . . Garrison Index 2 | . . . . . . . . . . . . . . . . . . . . . . . . . . 1 . 1 . . . . Alert Level 2 | . 1 . . . 1 . . . . . . . . . . . . . . . . . . . . . . . . . . . Unreport Threat 7 | . 1 . . . 2 . . . . . . . 1 . 1 . 1 . . . . . . . . 1 . . . . . . Locate Traps 15 | . 2 . . . 5 . 1 . . . . . 3 . 1 . . . . . 1 . . . . 1 . 1 . . . . Dispatch Records 7 | . 2 . . . . . 1 . . . . . 1 . . . . . . . 2 . . . . 1 . . . . . . Maintenance Status 5 | . 1 . . . 1 . . . . . . . 1 . . . . . . . 1 . . . . 1 . . . . . . Security Status 2 | . 1 . . . 1 . . . . . . . . . . . . . . . . . . . . . . . . . . . Surveillance Status 1 | . . . . . 1 . . . . . . . . . . . . . . . . . . . . . . . . . . . Investigation Status 1 | . . . . . . . . . . . . . . . 1 . . . . . . . . . . . . . . . . . Extermination Status 1 | . . . . . . . . . . . . . . . . . . . . . . . . . . 1 . . . . . . Assault Status 1 | . 1 . . . . . . . . . . . . . . . . . . . . . . . . . . . . . . . Recall Extermination 1 | . . . . . . . 1 . . . . . . . . . . . . . . . . . . . . . . . . . Hauler Manifests 2 | . . . . . 1 . . . . . . . . . . . . . . . . . . . . . . 1 . . . . Registered Components 2 | . . . . . . . . . . . . . 1 . . . . . . . . . . . . 1 . . . . . . Registered Prototypes 2 | . . . . . . . . . 1 . . . . . . . . . . . 1 . . . . . . . . . . . Zone Layout 11 | . 2 . . . 2 . 2 . 1 . . . 2 . . 1 . . . . . . . . . 1 . . . . . . Garrison Registry 6 | . . . . . . . . 1 . . . . . 1 . . . 1 . . . . . . . . 1 . 1 . 1 . Patrol Navigation 3 | . . . . . . 1 . . . . . . . 1 . . . 1 . . . . . . . . . . . . . . Security Stations 4 | . . . . . . . . . . . . . . 1 . . . 1 . . . . . . . . 1 . . . 1 . Fabricator Hacks 21 | . . . . . . . 3 . . . 1 . 1 . 1 . . . . . 7 . . . . 6 . . . 2 . . Network Status 6 | . . . . . . . 1 . . . 1 . . . 1 . . . . . 1 . . . . . . . . 2 . . Load Schematic 7 | . . . . . . . 1 . . . . . . . . . . . . . 3 . . . . 3 . . . . . . Build 8 | . . . . . . . 1 . . . . . 1 . . . . . . . 3 . . . . 3 . . . . . . Repair Station Hacks 11 | . . . . . 5 . . . . . . . . . . . 2 . . . 2 . . . . 2 . . . . . . Scan Component 6 | . . . . . 3 . . . . . . . . . . . 1 . . . 1 . . . . 1 . . . . . . Repair 5 | . . . . . 2 . . . . . . . . . . . 1 . . . 1 . . . . 1 . . . . . . Recycling Unit Hacks 12 | . 3 . . . . . . . 2 . . . . . . . 1 . . . . . . . . 4 . 2 . . . . Report Inventory 7 | . 2 . . . . . . . 1 . . . . . . . 1 . . . . . . . . 2 . 1 . . . . Retrieve Components 5 | . 1 . . . . . . . 1 . . . . . . . . . . . . . . . . 2 . 1 . . . . Scanalyzer 16 | . . . . . 8 . . . . . . . . . 2 . . . 6 . . . . . . . . . . . . . Insert Component 10 | . . . . . 5 . . . . . . . . . 1 . . . 4 . . . . . . . . . . . . . Analyze 6 | . . . . . 3 . . . . . . . . . 1 . . . 2 . . . . . . . . . . . . . Garrison Access Hacks 15 | . . . . . 1 . 1 . 1 . . . 1 . 1 . 1 . . . 4 . . . . 3 . 1 . 1 . . Unlock Access 9 | . . . . . 1 . 1 . 1 . . . 1 . 1 . 1 . . . . . . . . 1 . 1 . 1 . . Seal Access 3 | . . . . . . . . . . . . . . . . . . . . . 2 . . . . 1 . . . . . . Coupler Status 3 | . . . . . . . . . . . . . . . . . . . . . 2 . . . . 1 . . . . . . Unauthorized Hacks . | . . . . . . . . . . . . . . . . . . . . . . . . . . . . . . . . . Terminals . | . . . . . . . . . . . . . . . . . . . . . . . . . . . . . . . . . Fabricators . | . . . . . . . . . . . . . . . . . . . . . . . . . . . . . . . . . Repair Stations . | . . . . . . . . . . . . . . . . . . . . . . . . . . . . . . . . . Recycling Units . | . . . . . . . . . . . . . . . . . . . . . . . . . . . . . . . . . Scanalyzers . | . . . . . . . . . . . . . . . . . . . . . . . . . . . . . . . . . Garrison Access . | . . . . . . . . . . . . . . . . . . . . . . . . . . . . . . . . . Data Cores Recovered 2 | . . . . . 1 . . . . . . . . . . . . . . . . . . . . 1 . . . . . . Used 1 | . . . . . . . . . . . . . . . . . . . . . . . . . . 1 . . . . . . Hacking Detections 84 | . 7 . . . 12 1 9 . 2 1 . . 6 3 3 2 3 4 2 . 11 . . . . 12 . 2 1 2 1 . Full Trace Events 7 | . 1 . . . 1 . . . . . . . . . . . . . 1 . 2 . . . . 1 . 1 . . . . Feedback Events 2 | . . . . . . . . . . . . . . . . . . . . . 1 . . . . 1 . . . . . . Corruption 2 | . . . . . . . . . . . . . . . . . . . . . 1 . . . . 1 . . . . . . Feedback Blocked . | . . . . . . . . . . . . . . . . . . . . . . . . . . . . . . . . . Robot Schematics Acquired 1 | . . . . . . . . . . . . . . . . . . . . . . . . . . 1 . . . . . . Robots Built 3 | . . . . . . . . . . . . . 1 . . . . . . . . . . . . 2 . . . . . . Authchips 1 | . . . . . . . . . . . . . . . . . . . . . . . . . . 1 . . . . . . Time 129 | . . . . . . . . . . . . . 27 . . . . . . . . . . . . 102 . . . . . . Total Robot Build Rating 17 | . . . . . . . . . . . . . 1 . . . . . . . . . . . . 16 . . . . . . Part Schematics Acquired 13 | . . . . . 3 . 1 . . . . . . . 1 . 1 . 2 . 1 . . 4 . . . . . . . . Parts Built 6 | . . . . . . . 1 . . . . . . . . . . . . . 4 . . . . 1 . . . . . . Authchips 2 | . . . . . . . . . . . . . . . . . . . . . 2 . . . . . . . . . . . Time 410 | . . . . . . . 106 . . . . . . . . . . . . . 136 . . . . 168 . . . . . . Total Part Build Rating 34 | . . . . . . . 6 . . . . . . . . . . . . . 22 . . . . 6 . . . . . . Parts Repaired 5 | . . . . . 2 . . . . . . . . . . . 1 . . . 1 . . . . 1 . . . . . . Time 183 | . . . . . 52 . . . . . . . . . . . 50 . . . 31 . . . . 50 . . . . . . Parts Recycled . | . . . . . . . . . . . . . . . . . . . . . . . . . . . . . . . . . Recycled Matter . | . . . . . . . . . . . . . . . . . . . . . . . . . . . . . . . . . Retrieved Matter . | . . . . . . . . . . . . . . . . . . . . . . . . . . . . . . . . . Retrieved Components 27 | . 9 . . . . . . . 2 . . . . . . . . . . . . . . . . 13 . 3 . . . . Parts Scanalyzed 6 | . . . . . 3 . . . . . . . . . 1 . . . 2 . . . . . . . . . . . . . Part Schematics Acquired 6 | . . . . . 3 . . . . . . . . . 1 . . . 2 . . . . . . . . . . . . . Parts Damaged 1 | . . . . . . . . . . . . . . . . . . . 1 . . . . . . . . . . . . . Bothacking | -11 -10 -10 -10 -9 -8 -8 -7 -7 -7 -7 -6 -6 -6 -6 -6 -6 -5 -5 -5 -5 -4 -4 -4 -4 -3 -3 -3 -2 -2 -1 -1 -1 ------------ Run | Jun Mat Min Exi Min Mat Gar Fac Gar Fac Gar Fac Was Fac Gar Fac Gar Fac Gar Fac DSF Fac Upp Upp Zhi Pro Res Gar Res Gar Acc Gar Acc Used RIF Installer 9 | . . . . . . 1 . 1 . 1 . . . 1 . 1 . 1 . . . . . . . . 1 . 1 . 1 . Coupler Efficiency 1 | . . . . . . . . . . . . . . . . . . . . . . . . . . . . . . . 1 . Hotswap 1 | . . . . . . . . 1 . . . . . . . . . . . . . . . . . . . . . . . . Code Merge 2 | . . . . . . . . . . . . . . 1 . 1 . . . . . . . . . . . . . . . . Signal Jammer 1 | . . . . . . . . . . 1 . . . . . . . . . . . . . . . . . . . . . . Robot Detection 1 | . . . . . . . . . . . . . . . . . . . . . . . . . . . 1 . . . . . Patrol Navigation 1 | . . . . . . . . . . . . . . . . . . 1 . . . . . . . . . . . . . . Crosswire 1 | . . . . . . . . . . . . . . . . . . . . . . . . . . . . . 1 . . . Robots Hacked 196 | . . . . . . . 8 3 6 5 5 . . 13 4 11 12 11 6 1 17 3 . 2 . 2 11 1 22 3 14 36 Non-combat 68 | . . . . . . . 8 . 4 . 1 . . . 2 . 12 . 4 . 13 2 . . . 2 . 1 . 3 . 16 Combat 128 | . . . . . . . . 3 2 5 4 . . 13 2 11 . 11 2 1 4 1 . 2 . . 11 . 22 . 14 20 Robot Hacks Applied 243 | . . . . . . . 15 5 8 5 5 . . 14 5 11 22 12 8 2 24 3 . 2 . 2 13 2 24 4 14 43 parse_system 28 | . . . . . . . 2 . . . 1 . . 2 . 2 3 . 1 . 5 3 . 2 . 1 . . 3 . . 3 no_distress 1 | . . . . . . . . . . . . . . . . . . . . . . . . . . . . . . 1 . . generate_anomaly 1 | . . . . . . . . . . . . . . . . . 1 . . . . . . . . . . . . . . . generate_echo 16 | . . . . . . . 3 . . . . . . . 1 . 2 . 1 . 1 . . . . . . 1 . 2 . 5 start_evac 1 | . . . . . . . . . 1 . . . . . . . . . . . . . . . . . . . . . . . find_chute 1 | . . . . . . . . . . . . . . . . . 1 . . . . . . . . . . . . . . . deconstruct_machine 2 | . . . . . . . . . . . . . . . . . . . . . 1 . . . . . . . . . . 1 hold_bot 2 | . . . . . . . . . . . . . . . . . 2 . . . . . . . . . . . . . . . ignore_repairs 5 | . . . . . . . . . . . . . . . . . 3 . 2 . . . . . . . . . . . . . map_walls 9 | . . . . . . . 2 . . . . . . . . . 1 . 1 . 3 . . . . . . . . . . 2 randomize_corridors 2 | . . . . . . . 1 . 1 . . . . . . . . . . . . . . . . . . . . . . . map_earth 10 | . . . . . . . . . 1 . . . . . 1 . 2 . . . 3 . . . . . . 1 . . . 2 find_fabricator 3 | . . . . . . . 1 . 1 . . . . . . . . . . . . . . . . . . . . . . 1 drop_inventory 5 | . . . . . . . 2 . 1 . . . . . . . . . . . . . . . . . . . . . . 2 locate_stockpiles 3 | . . . . . . . 2 . . . . . . . . . . . . . 1 . . . . . . . . . . . find_recycling 2 | . . . . . . . 1 . . . . . . . . . . . . . . . . . . 1 . . . . . . relay_feed 4 | . . . . . . . . . . . . . . . . . 1 . . . 1 . . . . . . . . . . 2 find_shortcuts 2 | . . . . . . . . 1 . . . . . 1 . . . . . . . . . . . . . . . . . . link_fov 2 | . . . . . . . . . . . . . . . . . 1 . . . . . . . . . . . . . . 1 scatter_targeting 2 | . . . . . . . . 1 . . . . . . . . . . . . . . . . . . . . . . . 1 disrupt_area 1 | . . . . . . . . 1 . . . . . . . . . . . . . . . . . . . . . . . . overload_power 5 | . . . . . . . . . . 1 . . . . . . . 1 . . . . . . . . 1 . . . . 2 amplify_resonance 5 | . . . . . . . . . . . . . . . . . 2 1 . . 2 . . . . . . . . . . . wipe_record 1 | . . . . . . . . . . . . . . . . . . . . . 1 . . . . . . . . . . . disable_weapons 2 | . . . . . . . . . . . . . . . . . . . . 1 . . . . . . 1 . . . . . reboot_system 11 | . . . . . . . . . 1 . . . . 3 . 2 . 2 . . . . . . . . 2 . . . . 1 overwrite_iff 12 | . . . . . . . . . . . 3 . . 3 . 1 . . . . 2 . . . . . . . . . 2 1 formatsys_low 6 | . . . . . . . . . . . . . . . . . 2 . . . 2 . . . . . . . . . . 2 formatsys_high 96 | . . . . . . . 1 2 2 4 1 . . 5 3 6 1 8 3 1 2 . . . . . 9 . 20 1 12 15 formatsys_deep 3 | . . . . . . . . . . . . . . . . . . . . . . . . . . . . . 1 . . 2 Relay Couplers Released 144 | . . . . . . 17 . 3 . 8 . . . 23 . 19 . 20 . . 1 . . . . . 20 . 18 . 13 2 Machine Destruction 141 | . . . . . . 17 . 3 . 8 . . . 23 . 19 . 20 . . 1 . . . . . 20 . 18 . 10 2 Programmers 3 | . . . . . . . . . . . . . . . . . . . . . . . . . . . . . . . 3 . Attached 40 | . . . . . . . 3 3 2 2 1 . . 6 . 5 . 5 . 1 . . . . . . 4 . 5 2 1 . Crosswired 9 | . . . . . . . . . . . . . . . . . . . . . . . . . . . . . 7 . 2 . Merged Code Value 812 | . . . . . . . . . . . . . . 56 . 83 . 128 . . . . . . . . 116 . 215 17 197 . Fabnet Peak Effective % . | . . . . . . . . . . . . . . . . . . . . . . . . . . . . . . . . . Robots Rewired 23 | . . . . . . 5 . . . 2 . . . . . 1 . 2 . . . 2 . . . . 9 . 2 . . . Allies Hacked 6 | . . . . . . . . . . . . . . . . . . . . . 1 . . . . . . . . . 2 3 Hacks Repelled . | . . . . . . . . . . . . . . . . . . . . . . . . . . . . . . . . . Allies | -11 -10 -10 -10 -9 -8 -8 -7 -7 -7 -7 -6 -6 -6 -6 -6 -6 -5 -5 -5 -5 -4 -4 -4 -4 -3 -3 -3 -2 -2 -1 -1 -1 -------- Run | Jun Mat Min Exi Min Mat Gar Fac Gar Fac Gar Fac Was Fac Gar Fac Gar Fac Gar Fac DSF Fac Upp Upp Zhi Pro Res Gar Res Gar Acc Gar Acc Total Allies 182 | . . . . 3 . 5 1 2 2 6 4 20 1 10 3 10 3 12 3 1 6 2 . . . 2 18 . 26 1 16 25 Largest Group 28 | . . . . 3 3 5 6 2 2 4 7 19 15 14 13 13 15 14 16 17 18 1 . . . 2 11 . 23 24 28 28 Highest-Rated Group 1599 | . . . . 40 40 119 229 64 26 134 221 684 584 510 434 594 644 595 627 760 752 49 . . . 128 671 . 1297 1342 1599 1345 Highest-Rated Ally 137 | . . . . 16 16 39 110 39 16 39 39 50 50 51 51 119 119 119 80 137 137 49 . . . 64 89 . 69 69 80 89 Total Orders 73 | . . . . . . 6 27 . 4 . . . . 6 . . 16 6 2 . 1 . . . . . 1 . . . 4 . STAY 16 | . . . . . . . 7 . 2 . . . . . . . 1 3 . . . . . . . . 1 . . . 2 . FOLLOW 20 | . . . . . . . 7 . 2 . . . . 1 . . 6 2 . . . . . . . . . . . . 2 . GUARD 10 | . . . . . . . 5 . . . . . . . . . 5 . . . . . . . . . . . . . . . AID 3 | . . . . . . . 1 . . . . . . . . . . 1 1 . . . . . . . . . . . . . TUNNEL 5 | . . . . . . . . . . . . . . 5 . . . . . . . . . . . . . . . . . . DROP 4 | . . . . . . . 1 . . . . . . . . . 1 . 1 . 1 . . . . . . . . . . . PICKUP 3 | . . . . . . . 1 . . . . . . . . . 2 . . . . . . . . . . . . . . . COLLECT 1 | . . . . . . . . . . . . . . . . . 1 . . . . . . . . . . . . . . . EXPLORE 3 | . . . . . . 3 . . . . . . . . . . . . . . . . . . . . . . . . . . RETURN 8 | . . . . . . 3 5 . . . . . . . . . . . . . . . . . . . . . . . . . Ally Attacks 1391 | . . . . . 31 . 21 10 4 31 57 106 82 91 34 113 60 88 1 14 111 4 . . . 17 75 . 26 4 165 246 Total Damage 43036 | . . . . . 356 . 773 131 66 755 2093 3942 2290 2081 728 3082 2368 2835 25 452 5192 169 . . . 363 2216 . 938 66 5403 6712 Kills 260 | . . . . . 2 . 11 4 . 8 19 8 16 12 6 19 21 11 1 7 34 1 . . . 1 13 . 3 1 24 38 Allies Corrupted 5 | . . . . . . . . . . . . . . . . . . . . . . 1 . . . 1 . . . . 1 2 Allies Melted 1 | . . . . . . . . . . . . . . . . 1 . . . . . . . . . . . . . . . . Intel | -11 -10 -10 -10 -9 -8 -8 -7 -7 -7 -7 -6 -6 -6 -6 -6 -6 -5 -5 -5 -5 -4 -4 -4 -4 -3 -3 -3 -2 -2 -1 -1 -1 ------- Run | Jun Mat Min Exi Min Mat Gar Fac Gar Fac Gar Fac Was Fac Gar Fac Gar Fac Gar Fac DSF Fac Upp Upp Zhi Pro Res Gar Res Gar Acc Gar Acc Robot Analysis Total 8 | . 2 . . . . . . . . . . . . . . . . . . . 1 . . 4 . 1 . . . . . . Derelict Logs Recovered 2 | . . . . 1 . . . . . . . . . . . . . . . . . . 1 . . . . . . . . . Drone Launches 10 | . . . . . . 3 7 . . . . . . . . . . . . . . . . . . . . . . . . . Drone Recoveries 8 | . . . . . . 3 5 . . . . . . . . . . . . . . . . . . . . . . . . . Decoded 0b10 Intel 21 | . . . . . . . . . . . . . . . . . . . . . . . . . . 21 . . . . . . Traps 3 | . . . . . . . . . . . . . . . . . . . . . . . . . . 3 . . . . . . Emergency Access 5 | . . . . . . . . . . . . . . . . . . . . . . . . . . 5 . . . . . . Items 13 | . . . . . . . . . . . . . . . . . . . . . . . . . . 13 . . . . . . Exploration | -11 -10 -10 -10 -9 -8 -8 -7 -7 -7 -7 -6 -6 -6 -6 -6 -6 -5 -5 -5 -5 -4 -4 -4 -4 -3 -3 -3 -2 -2 -1 -1 -1 ------------- Run | Jun Mat Min Exi Min Mat Gar Fac Gar Fac Gar Fac Was Fac Gar Fac Gar Fac Gar Fac DSF Fac Upp Upp Zhi Pro Res Gar Res Gar Acc Gar Acc Turns Passed 24028 | 549 901 1106 1041 912 2413 746 2194 681 218 506 320 255 337 712 220 971 619 836 153 131 994 436 653 239 693 1315 1634 85 754 185 398 821 Spaces Moved 22303 | 532 577 662 689 566 1270 572 1642 723 323 608 395 357 415 776 308 1081 749 905 178 109 1266 492 418 207 684 1279 1552 137 864 255 473 1239 Core 26 | 6 . . . . . . 20 . . . . . . . . . . . . . . . . . . . . . . . . . Treads 1 | 1 . . . . . . . . . . . . . . . . . . . . . . . . . . . . . . . . Legs 746 | 64 . . . . . . 45 135 . . . . . . . . . . . . . . 358 143 . 1 . . . . . . Wheels 6140 | 461 577 662 689 566 1270 572 1343 . . . . . . . . . . . . . . . . . . . . . . . . . Hover 15269 | . . . . . . . 234 467 323 608 395 357 415 776 308 1081 749 905 178 109 1266 492 60 64 684 1278 1552 137 864 255 473 1239 Flight 121 | . . . . . . . . 121 . . . . . . . . . . . . . . . . . . . . . . . . Fastest Speed 23 | 50 80 140 140 140 110 115 56 23 38 38 42 45 45 45 50 55 46 46 46 44 40 40 73 52 52 38 38 48 42 39 43 42 Average Speed 71 | 84 128 142 140 140 112 115 110 52 38 41 47 47 45 47 54 55 49 46 46 44 40 58 114 99 91 50 52 49 43 45 44 44 Slowest Speed 250 | 160 200 200 140 140 128 115 230 120 38 42 100 100 45 55 55 106 58 46 46 50 44 196 124 120 98 250 118 51 134 117 46 110 Overloaded Moves . | . . . . . . . . . . . . . . . . . . . . . . . . . . . . . . . . . Propulsion Burnouts . | . . . . . . . . . . . . . . . . . . . . . . . . . . . . . . . . . Robots Hopped . | . . . . . . . . . . . . . . . . . . . . . . . . . . . . . . . . . Cave-ins Triggered 1 | . . . . . . . . . . . . . . . . . . . . . . . . . . . 1 . . . . . Teleports 1 | . . . . . . . . . . . . . . . . . . . . . . . . 1 . . . . . . . . Exploration Rate (%) 56 | 18 93 98 93 95 76 98 40 67 8 68 10 96 14 87 9 85 15 95 4 92 32 64 62 62 89 25 86 5 86 6 56 35 Regions Visited 32 Branch Regions 7 Pre-discovered Areas 5 | . . . 1 1 . . . . . . . . . . . . . . . . . . . 3 . . . . . . . . Known Exits Taken 20 | 1 1 1 1 1 1 . 1 . 1 . . . 1 . 1 . 1 . 1 . 1 1 1 1 1 1 . 1 . 1 . . Unknown Exits Taken . | . . . . . . . . . . . . . . . . . . . . . . . . . . . . . . . . . Scrap Searched 7 | . . . . 1 . . . . . . . . . . . . . . . . . 1 4 . 1 . . . . . . . Spaces Dug 135 | . . 8 . . 23 . 8 2 1 . 1 . 4 . 8 1 7 1 4 . 4 5 . . . . 46 . 8 . 4 . Terrain Destroyed 768 | . 10 9 . . 23 . 43 2 1 . 7 1 8 . 8 1 7 1 5 . 7 5 . . . 46 51 . 157 . 67 309 Melee 113 | . . . . . 22 . 8 1 1 . 1 . 4 . 8 1 7 1 4 . 4 5 . . . . 46 . . . . . Projectile 51 | . . 9 . . 1 . . 1 . . 6 1 4 . . . . . 1 . 2 . . . . 8 5 . 9 . 4 . AOE 603 | . 10 . . . . . 35 . . . . . . . . . . . . . . . . . . 38 . . 148 . 63 309 Terrain Rammed . | . . . . . . . . . . . . . . . . . . . . . . . . . . . . . . . . . Walls Destroyed . | . . . . . . . . . . . . . . . . . . . . . . . . . . . . . . . . . Machines Disabled . | . . . . . . . . . . . . . . . . . . . . . . . . . . . . . . . . . Actions | -11 -10 -10 -10 -9 -8 -8 -7 -7 -7 -7 -6 -6 -6 -6 -6 -6 -5 -5 -5 -5 -4 -4 -4 -4 -3 -3 -3 -2 -2 -1 -1 -1 --------- Run | Jun Mat Min Exi Min Mat Gar Fac Gar Fac Gar Fac Was Fac Gar Fac Gar Fac Gar Fac DSF Fac Upp Upp Zhi Pro Res Gar Res Gar Acc Gar Acc Total 28405 | 598 676 753 765 686 2082 632 1944 950 408 798 482 412 526 1008 339 1333 950 1243 238 183 1627 609 556 243 736 1814 2096 154 1165 319 635 1445 Wait 2880 | 11 41 36 71 119 602 5 70 77 31 92 20 29 73 88 3 62 108 218 27 28 169 68 87 1 27 336 168 . 128 37 42 6 Move 22274 | 531 576 661 688 565 1270 571 1641 722 323 607 395 356 414 775 308 1080 748 904 177 108 1265 491 417 206 683 1279 1550 136 863 254 472 1238 Hop . | . . . . . . . . . . . . . . . . . . . . . . . . . . . . . . . . . Pick Up 341 | 22 11 11 1 1 31 10 37 24 2 9 4 3 5 8 . 11 11 3 4 5 16 3 5 8 5 28 26 5 15 5 5 7 Fast Attach 121 | . 1 . 1 . 5 . 15 9 . 1 6 . 1 4 3 6 6 8 . 1 2 2 10 7 1 8 11 . 3 1 1 8 Attach 182 | 7 3 6 1 . 11 3 33 6 2 2 1 1 1 2 . 8 3 2 2 1 13 6 1 5 5 19 18 5 10 3 2 . Detach 39 | . 1 2 1 . 2 1 8 2 . . . 1 . . 1 1 . 1 1 . 1 2 1 1 1 7 2 1 1 . . . Swap 330 | 6 9 6 1 . 18 3 19 15 6 21 9 2 7 18 4 17 14 17 3 11 17 7 3 2 2 25 31 2 7 5 9 14 Drop 360 | 5 5 . 1 1 35 10 42 30 4 9 7 . 4 9 3 15 12 10 4 9 13 3 9 11 4 31 35 3 9 5 8 14 Fire 946 | 16 29 31 . . 57 . 16 22 3 23 34 20 17 30 7 29 35 45 13 4 100 12 1 . 8 63 105 2 74 5 39 106 Melee 638 | . . . . . 51 28 62 43 15 27 6 . 4 45 9 65 13 28 4 3 30 15 22 2 . 18 119 . 22 4 3 . Ram . | . . . . . . . . . . . . . . . . . . . . . . . . . . . . . . . . . Kick . | . . . . . . . . . . . . . . . . . . . . . . . . . . . . . . . . . Crush . | . . . . . . . . . . . . . . . . . . . . . . . . . . . . . . . . . Escape Stasis 79 | . . . . . . . . . . . . . . 5 . 21 . . . 13 . . . . . . 1 . 31 . 8 . Rewire 44 | . . . . . . 1 1 . . . . . . 2 1 3 . 7 3 . 1 . . . . . 6 . 2 . 10 7 Trap 171 | . . . . . . . . . 22 7 . . . 22 . 15 . . . . . . . . . . 24 . . . 36 45 Miscellaneous . | . . . . . . . . . . . . . . . . . . . . . . . . . . . . . . . . . Route ------- -11/Junkyard -10/Materials (discovered 4 exits: *Mat x3 / *Min) -10/Mines (discovered 3 exits: *Mat x2 / *Exi) -10/Exiles (discovered 2 exits: *Min x2) -9/Mines (discovered 2 exits: *Mat x2) -8/Materials (discovered 4 exits: *Fac x2 / *Sto / Gar) -8/Garrison (discovered 3 exits: *Fac x3) -7/Factory (discovered 4 exits: *Fac / *Low x2 / Gar) -7/Garrison (discovered 3 exits: *Fac x3) -7/Factory (discovered 4 exits: *Fac / Low x2 / Gar) -7/Garrison (discovered 2 exits: *Fac x2) -6/Factory -6/Waste -6/Factory (discovered 2 exits: *Low / Gar) -6/Garrison (discovered 3 exits: *Fac x3) -6/Factory (discovered 2 exits: *Low / Gar) -6/Garrison (discovered 3 exits: *Fac x3) -5/Factory -5/Garrison (discovered 3 exits: *Fac x3) -5/Factory -5/DSF -4/Factory (discovered 3 exits: *Res / *Upp x2) -4/Upper Caves -4/Upper Caves (discovered 2 exits: Res / *Zhi) -4/Zhirov -3/Proximity Caves -3/Research (discovered 5 exits: *Res / Arm / Tes x2 / Gar) -3/Garrison (discovered 3 exits: *Res x3) -2/Research (discovered 2 exits: Qua / Gar) -2/Garrison (discovered 3 exits: *Acc x3) -1/Access -1/Garrison (discovered 3 exits: *Acc x3) -1/Access To Epsilon Eridani History --------- Turn | Location | Event 13 | -11/Junkyard | Identified exit to Materials 13 | -11/Junkyard | Discovered exit to Materials (range 16) 550 | -11/Junkyard | Entered Materials 550 | -10/Materials | Evolved 1 slot: Utility x1 571 | -10/Materials | Build established: Hacker-Mutant 590 | -10/Materials | Identified exit to Mines 590 | -10/Materials | Discovered exit to Mines (range 7) 866 | -10/Materials | Identified exit to Materials 866 | -10/Materials | Discovered exit to Materials (range 4) 963 | -10/Materials | Build established: Scavenger-Mutant 967 | -10/Materials | Discovered exit to Materials (range 16) 1223 | -10/Materials | Discovered exit to Materials (range 15) 1451 | -10/Materials | Entered Mines 1627 | -10/Mines | Assembled infested the area 1650 | -10/Mines | Core integrity fell below 50% 1680 | -10/Mines | Lost 3 parts (1p1n1w) 1700 | -10/Mines | Identified exit to Exiles 1700 | -10/Mines | Discovered exit to Exiles (range 11) 1729 | -10/Mines | Deemed a non-threat by the Exiles lab entrance 1762 | -10/Mines | Discovered exit to Materials (range 15) 1790 | -10/Mines | Discovered exit to Materials (range 14) 2111 | -10/Mines | Core integrity fell below 20% 2244 | -10/Mines | Met a Derelict who couldn't figure out how to use a Trap Extractor 2412 | -10/Mines | Found the Drone Emporium 2419 | -10/Mines | Found Prototype Device 2557 | -10/Mines | Entered Exiles 2578 | -10/Exiles | Identified exit to Mines 2578 | -10/Exiles | Discovered exit to Mines (range 15) 2592 | -10/Exiles | Met 8R-AWN 2621 | -10/Exiles | Met EX-HEX 2669 | -10/Exiles | Met EX-BIN 2753 | -10/Exiles | Aligned with FarCom system 2754 | -10/Exiles | Given EX-Vault access code 2876 | -10/Exiles | Met EX-DEC 2896 | -10/Exiles | Learned location of Zion (-7) 2966 | -10/Exiles | Discovered exit to Mines (range 14) 3107 | -10/Exiles | Visited The Gauntlet 3453 | -10/Exiles | Opened EX-Vault 3460 | -10/Exiles | Found Prototype Device 3473 | -10/Exiles | Identified Sensor Drone Bay 3474 | -10/Exiles | Identified Trap Reconfigurator 3498 | -10/Exiles | Warned to stay clear of 0b10 Research branches 3598 | -10/Exiles | Left Exiles lab with Trap Reconfigurator 3598 | -10/Exiles | Entered Mines 3756 | -9/Mines | Identified exit to Materials 3756 | -9/Mines | Discovered exit to Materials (range 12) 4299 | -9/Mines | Discovered exit to Materials (range 10) 4418 | -9/Mines | Assisted by bots powering up and referring to "LRC-V3" 4510 | -9/Mines | Entered Materials 4510 | -8/Materials | Accompanied by 3 allies 4510 | -8/Materials | Evolved 4 slots: Power x1, Propulsion x2, Utility x1 5266 | -8/Materials | Build established: Scavenger-Skirmisher 5737 | -8/Materials | Repaired Wheel 5759 | -8/Materials | Build established: Scavenger-Assassin 5803 | -8/Materials | Repaired Wheel 5866 | -8/Materials | Identified exit to Factory 5866 | -8/Materials | Discovered exit to Factory (range 15) 5948 | -8/Materials | Discovered exit to Factory (range 16) 5963 | -8/Materials | Identified exit to Storage 5963 | -8/Materials | Discovered exit to Storage (range 4) 6923 | -8/Materials | Identified exit to Garrison 6923 | -8/Materials | Entered Garrison 6923 | -8/Garrison | Discovered recently destroyed garrison 7036 | -8/Garrison | Discovered exit to Factory (range 43) 7038 | -8/Garrison | Discovered exit to Factory (range 67) 7067 | -8/Garrison | Garrison Relay disabled 7148 | -8/Garrison | Discovered exit to Factory (range 52) 7199 | -8/Garrison | Garrison Relay disabled 7225 | -8/Garrison | Installed Relay Interface Framework 7363 | -8/Garrison | Garrison Relay disabled 7409 | -8/Garrison | Garrison Relay disabled 7557 | -8/Garrison | Build established: Hacker-Mutant 7669 | -8/Garrison | Entered Factory 7669 | -7/Factory | Accompanied by 5 allies 7669 | -7/Factory | Evolved 2 slots: Propulsion x1, Utility x1 7945 | -7/Factory | Identified exit to Factory 7945 | -7/Factory | Discovered exit to Factory (range 4) 8200 | -7/Factory | Identified exit to DSF 8462 | -7/Factory | Identified exit to Lower Caves 8643 | -7/Factory | Fabricated Imp. Transmission Jammer? 8865 | -7/Factory | Cargo convoy interrupted 8988 | -7/Factory | Lost 3 parts (1p1n1w) 9369 | -7/Factory | Core integrity fell below 50% 9390 | -7/Factory | Lost 3 parts (3n) 9525 | -7/Factory | Lost 4 parts (2n2u) 9587 | -7/Factory | Build established: Commander-Mutant 9858 | -7/Factory | Identified exit to Garrison 9863 | -7/Factory | Entered Garrison 9863 | -7/Garrison | Accompanied by 2 allies 9904 | -7/Garrison | Triggered checkpoint 10002 | -7/Garrison | Garrison Relay disabled 10064 | -7/Garrison | Triggered checkpoint 10155 | -7/Garrison | Identified exit to Factory 10155 | -7/Garrison | Discovered exit to Factory (range 66) 10155 | -7/Garrison | Discovered exit to Factory (range 50) 10155 | -7/Garrison | Discovered exit to Factory (range 12) 10286 | -7/Garrison | Triggered checkpoint 10378 | -7/Garrison | Expanded RIF knowledge: Hotswap 10496 | -7/Garrison | Build established: Hacker-Mutant 10544 | -7/Garrison | Entered Factory 10695 | -7/Factory | Core integrity fell below 20% 10747 | -7/Factory | Discovered exit to Factory (range 16) 10762 | -7/Factory | Identified exit to Garrison 10762 | -7/Factory | Entered Garrison 10762 | -7/Garrison | Accompanied by 1 ally 10782 | -7/Garrison | Garrison Relay disabled 10809 | -7/Garrison | Triggered checkpoint 10830 | -7/Garrison | Triggered checkpoint 10873 | -7/Garrison | Triggered checkpoint 10882 | -7/Garrison | Triggered checkpoint 10914 | -7/Garrison | Discovered exit to Factory (range 8) 10992 | -7/Garrison | Discovered exit to Factory (range 13) 11010 | -7/Garrison | Triggered checkpoint 11094 | -7/Garrison | Garrison Relay disabled 11192 | -7/Garrison | Expanded RIF knowledge: Signal Jamming 11268 | -7/Garrison | Entered Factory 11268 | -6/Factory | Accompanied by 4 allies 11268 | -6/Factory | Evolved 2 slots: Utility x2 11303 | -6/Factory | Found Powered Armor 11588 | -6/Factory | Sucked down chute 11588 | -6/Factory | Entered Waste 11589 | -6/Waste | Met a frightened Derelict 11597 | -6/Waste | Spotted C-40 Crusher 11623 | -6/Waste | Spotted C-40 Crusher 11631 | -6/Waste | Spotted C-40 Crusher 11631 | -6/Waste | Spotted C-40 Crusher 11633 | -6/Waste | Spotted C-40 Crusher 11656 | -6/Waste | Warlord forces began an assault 11693 | -6/Waste | Allies destroyed C-40 Crusher 11693 | -6/Waste | Allies destroyed C-40 Crusher 11696 | -6/Waste | Allies destroyed C-40 Crusher 11718 | -6/Waste | Allies destroyed C-40 Crusher 11721 | -6/Waste | Spotted C-40 Crusher 11727 | -6/Waste | Allies destroyed C-40 Crusher 11732 | -6/Waste | Allies destroyed C-40 Crusher 11767 | -6/Waste | Identified exit to Factory 11767 | -6/Waste | Discovered exit to Factory (range 11) 11843 | -6/Waste | Entered Factory 11843 | -6/Factory | Accompanied by 15 allies 11996 | -6/Factory | Fabricated T-07 Excavator (x1) 12039 | -6/Factory | Identified exit to Lower Caves 12039 | -6/Factory | Discovered exit to Lower Caves (range 5) 12098 | -6/Factory | Identified exit to Garrison 12142 | -6/Factory | Build established: Hacker-Scout 12180 | -6/Factory | Entered Garrison 12180 | -6/Garrison | Accompanied by 11 allies 12193 | -6/Garrison | Triggered checkpoint 12226 | -6/Garrison | Garrison Relay disabled 12242 | -6/Garrison | Garrison Relay disabled 12254 | -6/Garrison | Triggered checkpoint 12346 | -6/Garrison | Triggered checkpoint 12358 | -6/Garrison | Triggered checkpoint 12359 | -6/Garrison | Spotted B-75 Beast 12367 | -6/Garrison | Allies destroyed B-75 Beast 12377 | -6/Garrison | Triggered checkpoint 12387 | -6/Garrison | Triggered checkpoint 12450 | -6/Garrison | Garrison Relay disabled 12458 | -6/Garrison | Triggered checkpoint 12474 | -6/Garrison | Expanded RIF knowledge: Code Merge 12490 | -6/Garrison | Identified exit to Factory 12490 | -6/Garrison | Discovered exit to Factory (range 8) 12585 | -6/Garrison | Build established: Hacker-Mutant 12628 | -6/Garrison | Discovered exit to Factory (range 50) 12628 | -6/Garrison | Discovered exit to Factory (range 71) 12628 | -6/Garrison | Discovered exit to Factory (range 19) 12643 | -6/Garrison | Rescued a captive Derelict 12645 | -6/Garrison | Rescued a captive Derelict 12671 | -6/Garrison | Learned Factory security intel 12676 | -6/Garrison | Triggered checkpoint 12701 | -6/Garrison | Garrison Relay disabled 12794 | -6/Garrison | Garrison Relay disabled 12821 | -6/Garrison | Triggered checkpoint 12829 | -6/Garrison | Garrison Relay disabled 12892 | -6/Garrison | Entered Factory 12892 | -6/Factory | Accompanied by 11 allies 12930 | -6/Factory | Discovered exit to Lower Caves (range 15) 13082 | -6/Factory | Garrison activated, responded to threat 13112 | -6/Factory | Identified exit to Garrison 13112 | -6/Factory | Entered Garrison 13112 | -6/Garrison | Accompanied by 12 allies 13132 | -6/Garrison | Triggered checkpoint 13154 | -6/Garrison | Triggered checkpoint 13193 | -6/Garrison | Expanded RIF knowledge: Code Merge 13204 | -6/Garrison | Identified exit to Factory 13204 | -6/Garrison | Discovered exit to Factory (range 14) 13223 | -6/Garrison | Triggered checkpoint 13232 | -6/Garrison | Garrison Relay disabled 13300 | -6/Garrison | Triggered checkpoint 13348 | -6/Garrison | Discovered exit to Factory (range 11) 13364 | -6/Garrison | Triggered checkpoint 13387 | -6/Garrison | Garrison Relay disabled 13457 | -6/Garrison | Spotted B-75 Beast 13457 | -6/Garrison | Spotted B-75 Beast 13519 | -6/Garrison | Allies destroyed B-75 Beast 13579 | -6/Garrison | Heavy support dispatched to Factory 13659 | -6/Garrison | Discovered exit to Factory (range 10) 13685 | -6/Garrison | Garrison Relay disabled 13700 | -6/Garrison | Found embedded Infiltrators 13750 | -6/Garrison | Triggered checkpoint 13856 | -6/Garrison | Triggered checkpoint 13877 | -6/Garrison | Garrison Relay disabled 13944 | -6/Garrison | Triggered checkpoint 13952 | -6/Garrison | Garrison Relay disabled 13985 | -6/Garrison | Spotted Striker 13992 | -6/Garrison | Rewired Executioner 14012 | -6/Garrison | Allies destroyed Striker 14083 | -6/Garrison | Entered Factory 14083 | -5/Factory | Accompanied by 13 allies 14083 | -5/Factory | Evolved 2 slots: Utility x2 14195 | -5/Factory | Found Exp. Targeting Computer 14197 | -5/Factory | Found Exp. Targeting Computer 14239 | -5/Factory | Build established: Commander-Mutant 14383 | -5/Factory | First assault squad dispatched 14426 | -5/Factory | Repaired Power Sword? 14652 | -5/Factory | Identified exit to Garrison 14702 | -5/Factory | Entered Garrison 14702 | -5/Garrison | Accompanied by 14 allies 14714 | -5/Garrison | Triggered checkpoint 14752 | -5/Garrison | Garrison Relay disabled 14762 | -5/Garrison | Identified exit to Factory 14762 | -5/Garrison | Discovered exit to Factory (range 45) 14762 | -5/Garrison | Discovered exit to Factory (range 66) 14762 | -5/Garrison | Discovered exit to Factory (range 52) 14785 | -5/Garrison | Spotted B-75 Beast 14820 | -5/Garrison | Allies destroyed B-75 Beast 14849 | -5/Garrison | Triggered checkpoint 14856 | -5/Garrison | Found Exp. Core Analyzer 14882 | -5/Garrison | Triggered checkpoint 14899 | -5/Garrison | Destroyed 9 combat bots 14921 | -5/Garrison | Expanded RIF knowledge: Patrol Navigation 14966 | -5/Garrison | Phase Generator disabled 15024 | -5/Garrison | Found embedded Infiltrators 15052 | -5/Garrison | Triggered checkpoint 15059 | -5/Garrison | Garrison Relay disabled 15107 | -5/Garrison | Learned Factory security intel 15251 | -5/Garrison | Triggered checkpoint 15263 | -5/Garrison | Triggered checkpoint 15298 | -5/Garrison | Triggered checkpoint 15346 | -5/Garrison | Garrison Relay disabled 15357 | -5/Garrison | Garrison Relay disabled 15393 | -5/Garrison | Triggered checkpoint 15400 | -5/Garrison | Garrison Relay disabled 15538 | -5/Garrison | Entered Factory 15538 | -5/Factory | Accompanied by 13 allies 15664 | -5/Factory | Identified exit to DSF 15691 | -5/Factory | Entered DSF 15691 | -5/DSF | Accompanied by 16 allies 15716 | -5/DSF | Additional patrols routed to DSF 15774 | -5/DSF | Identified exit to Factory 15774 | -5/DSF | Discovered exit to Factory (range 16) 15822 | -5/DSF | Entered Factory 15822 | -4/Factory | Accompanied by 15 allies 15822 | -4/Factory | Evolved 2 slots: Power x1, Propulsion x1 15885 | -4/Factory | Fabricated System Shield (x1) 15922 | -4/Factory | Fabricated System Shield (x1) 16223 | -4/Factory | Garrison activated, responded to threat 16322 | -4/Factory | First assault squad dispatched 16449 | -4/Factory | Identified exit to Research 16449 | -4/Factory | Discovered exit to Research (range 15) 16512 | -4/Factory | Repaired Imp. Phase Shifter 16640 | -4/Factory | Identified exit to Upper Caves 16716 | -4/Factory | Fabricated Adv. Force Field (x2) 16717 | -4/Factory | Build established: Hacker-Scout 16816 | -4/Factory | Entered Upper Caves 16875 | -4/Upper Caves | Attracted the attention of an 0b10 checkpoint 16963 | -4/Upper Caves | Lost 4 parts (3n1w) 17006 | -4/Upper Caves | Attracted the attention of an 0b10 outpost 17098 | -4/Upper Caves | Encountered a Warlord checkpoint 17113 | -4/Upper Caves | Identified exit to Upper Caves 17113 | -4/Upper Caves | Discovered exit to Upper Caves (range 10) 17128 | -4/Upper Caves | Build established: Hacker-Mutant 17246 | -4/Upper Caves | Attacked by a delusional Derelict stockpiling parts 17252 | -4/Upper Caves | Entered another Upper Caves area 17338 | -4/Upper Caves | Encountered a Warlord checkpoint 17346 | -4/Upper Caves | Discovered exit to Research (range 22) 17436 | -4/Upper Caves | Lost 3 parts (1p2n) 17698 | -4/Upper Caves | Build established: Hacker-Assassin 17700 | -4/Upper Caves | Lost 5 parts (1p3n1u) 17763 | -4/Upper Caves | Identified exit to Zhirov 17763 | -4/Upper Caves | Discovered exit to Zhirov (range 8) 17905 | -4/Upper Caves | Entered Zhirov 17905 | -4/Zhirov | Identified exit to Proximity Caves 17905 | -4/Zhirov | Discovered exit to Proximity Caves (range 3) 17927 | -4/Zhirov | Met Zhirov 17961 | -4/Zhirov | Learned location of Quarantine (-2) 17961 | -4/Zhirov | Learned location of Testing (-3) 17961 | -4/Zhirov | Learned location of Command (-1) 17986 | -4/Zhirov | Zhirov requested help retrieving the SGEMP Prototype 18009 | -4/Zhirov | Found Alien Artifact 18011 | -4/Zhirov | Identified Integrated Dissipator 18011 | -4/Zhirov | Installed Integrated Dissipator, increased core heat dissipation (+20) 18029 | -4/Zhirov | Found Alien Artifact 18029 | -4/Zhirov | Identified Transdimensional Reconstructor 18029 | -4/Zhirov | Warped through subspace 18144 | -4/Zhirov | Entered Proximity Caves 18212 | -3/Proximity Caves | Attracted the attention of an 0b10 checkpoint 18386 | -3/Proximity Caves | Spotted B-86 Titan 18488 | -3/Proximity Caves | Spotter reported a threat 18625 | -3/Proximity Caves | Discovered exit to Research (range 7) 18678 | -3/Proximity Caves | Spotter reported a threat 18817 | -3/Proximity Caves | Build established: Hacker-Mutant 18837 | -3/Proximity Caves | Entered Research 18837 | -3/Research | Evolved 2 slots: Propulsion x1, Utility x1 18988 | -3/Research | Garrison activated, responded to threat 19087 | -3/Research | Search patrols dispatched 19148 | -3/Research | Found Prototype Processor 19150 | -3/Research | Identified exit to Armory 19150 | -3/Research | Identified exit to Testing 19245 | -3/Research | Fabricated Y-72 Warden (x2) 19256 | -3/Research | Identified Exp. Signal Interpreter 19361 | -3/Research | Build established: Hacker-Scout 19418 | -3/Research | Found Antimissile System 19737 | -3/Research | Fabricated Exp. Heat Sink (x1) 19874 | -3/Research | Build established: Hacker-Skirmisher 19923 | -3/Research | Repaired Power Sword 20037 | -3/Research | Identified exit to Research 20037 | -3/Research | Discovered exit to Research (range 5) 20152 | -3/Research | Identified exit to Garrison 20152 | -3/Research | Entered Garrison 20161 | -3/Garrison | Triggered checkpoint 20233 | -3/Garrison | Garrison Relay disabled 20388 | -3/Garrison | Triggered checkpoint 20490 | -3/Garrison | Spotted B-86 Titan 20549 | -3/Garrison | Discovered exit to Research (range 37) 20549 | -3/Garrison | Discovered exit to Research (range 45) 20549 | -3/Garrison | Discovered exit to Research (range 55) 20552 | -3/Garrison | Spotted B-86 Titan 20569 | -3/Garrison | Garrison Relay disabled 20589 | -3/Garrison | Learned Research security intel 20638 | -3/Garrison | Build established: Hacker-Scout 20649 | -3/Garrison | Triggered checkpoint 20705 | -3/Garrison | P-80 Master assimilated allied Veteran 8b 20715 | -3/Garrison | Destroyed B-86 Titan 20918 | -3/Garrison | Triggered checkpoint 20942 | -3/Garrison | Triggered checkpoint 20965 | -3/Garrison | Garrison Relay disabled 20990 | -3/Garrison | Build established: Hacker-Mutant 21102 | -3/Garrison | Garrison Relay disabled 21384 | -3/Garrison | Crushed by falling debris 21412 | -3/Garrison | Expanded RIF knowledge: Robot Detection 21430 | -3/Garrison | Triggered checkpoint 21437 | -3/Garrison | Garrison Relay disabled 21450 | -3/Garrison | Triggered checkpoint 21450 | -3/Garrison | Triggered checkpoint 21543 | -3/Garrison | Spotted B-86 Titan 21584 | -3/Garrison | Triggered checkpoint 21657 | -3/Garrison | Destroyed B-86 Titan 21760 | -3/Garrison | Build established: Bothacker-Mutant 21786 | -3/Garrison | Entered Research 21786 | -2/Research | Evolved 2 slots: Utility x1, Weapon x1 21787 | -2/Research | Identified exit to Quarantine 21794 | -2/Research | Found Fusion Bomb Launcher 21869 | -2/Research | Identified exit to Garrison 21871 | -2/Research | Entered Garrison 21884 | -2/Garrison | Spotted B-86 Titan 21900 | -2/Garrison | Triggered checkpoint 21908 | -2/Garrison | Garrison Relay disabled 21915 | -2/Garrison | Destroyed 7 combat bots 21996 | -2/Garrison | Lost 6 parts (1p2n1u2w) 22071 | -2/Garrison | Triggered checkpoint 22073 | -2/Garrison | Assimilated ARC 9a with formatsys_deep 22152 | -2/Garrison | Triggered checkpoint 22168 | -2/Garrison | Triggered checkpoint 22173 | -2/Garrison | Triggered checkpoint 22188 | -2/Garrison | Identified exit to Access 22188 | -2/Garrison | Discovered exit to Access (range 8) 22201 | -2/Garrison | Build established: Botlord-Mutant 22208 | -2/Garrison | Triggered checkpoint 22275 | -2/Garrison | Expanded RIF knowledge: Crosswire 22292 | -2/Garrison | Garrison Relay disabled 22364 | -2/Garrison | Discovered exit to Access (range 10) 22380 | -2/Garrison | Triggered checkpoint 22383 | -2/Garrison | Garrison Relay disabled 22453 | -2/Garrison | Discovered exit to Access (range 23) 22453 | -2/Garrison | Discovered exit to Access (range 28) 22453 | -2/Garrison | Discovered exit to Access (range 44) 22496 | -2/Garrison | Triggered checkpoint 22513 | -2/Garrison | Garrison Relay disabled 22550 | -2/Garrison | Garrison Relay disabled 22625 | -2/Garrison | Entered Access 22625 | -1/Access | Accompanied by 23 allies 22625 | -1/Access | Evolved 2 slots: Utility x2 22750 | -1/Access | Identified exit to Garrison 22754 | -1/Access | Build established: Commander-Mutant 22810 | -1/Access | Entered Garrison 22810 | -1/Garrison | Accompanied by 24 allies 22816 | -1/Garrison | Found embedded Infiltrators 22830 | -1/Garrison | Triggered checkpoint 22841 | -1/Garrison | Garrison Relay disabled 22943 | -1/Garrison | Identified exit to Access 22943 | -1/Garrison | Discovered exit to Access (range 38) 22943 | -1/Garrison | Discovered exit to Access (range 63) 22943 | -1/Garrison | Discovered exit to Access (range 54) 22966 | -1/Garrison | Spotted B-99 Colossus 22975 | -1/Garrison | Triggered checkpoint 22984 | -1/Garrison | Triggered checkpoint 22987 | -1/Garrison | Triggered checkpoint 22992 | -1/Garrison | Allies destroyed B-99 Colossus 23002 | -1/Garrison | Triggered checkpoint 23038 | -1/Garrison | Triggered checkpoint 23096 | -1/Garrison | Learned Access security intel 23110 | -1/Garrison | Triggered checkpoint 23122 | -1/Garrison | Expanded RIF knowledge: Coupler Efficiency 23129 | -1/Garrison | Garrison Relay disabled 23138 | -1/Garrison | Garrison Relay disabled 23154 | -1/Garrison | Triggered checkpoint 23208 | -1/Garrison | Entered Access 23208 | -1/Access | Accompanied by 21 allies 23221 | -1/Access | Found Fusion Bomb Launcher 23273 | -1/Access | Energy Cycler disabled 23276 | -1/Access | Assimilated ARC 10a with formatsys_deep 23513 | -1/Access | Assimilated ARC 10b with formatsys_deep 23546 | -1/Access | Garrison activated, responded to threat 23667 | -1/Access | Found Adv. Micro-nuke Launcher 23669 | -1/Access | Found Exp. Thermal Defense Suite 23708 | -1/Access | First assault squad dispatched 23726 | -1/Access | Garrison activated, responded to threat 23990 | -1/Access | Spotted B-99 Colossus 24016 | -1/Access | Build established: Botlord-Mutant 24021 | -1/Access | Identified exit to Surface 24021 | -1/Access | Discovered exit to Surface (range 6) 24029 | *** | Escaped! Last Messages --------------- Slug penetrates Wall. Acquired 2 matter. Acquired 8 matter. The unstable cave ceiling collapses. Slug penetrates Wall. Penetrated by Slug. Slug penetrates Wall. Slug penetrates Door. Slug penetrates Wall. Penetrated by Slug. The Access Shell folds into the floor. EXIT=FOUND: SURFACE Slug penetrates Wall. [Achievement: 30k Club] [Achievement: 40k Club] [Achievement: 50k Club] [Achievement: Just Browsing] [Achievement: Epsilon Run] [Achievement: One Last FU] [Achievement: Achiever] Map ----- +----------------------------------------------------+ | + # "* [ #?? | | !! # # """ =% ##? | | ######### !!^ = # G% = ! # | | ######### ! # """%! !%* # | | ## # ! = == | | = # # "" ! | | # * [ ! " | | [ ! #"# ##! | | ##### % ##### ##### | | ## # ^ ###### | | ## ## ###### = | | ???## ###### ###+##### | | ????# # ######## ## ??? | | ????## ######## ## ? | | ?????# ########### ######## ## | | ???? #?????????#####??????# ## " | | ??? # ###????????????????????# ## """ | | ?? " ######??????????????????????# ## """ | | ?? """ #???????????????????????????# ## " | | ????""" #???????????????????###?????# ## ? | | ?????" #????????############ ####### ## ? | | ?????? #????????" #########? | | ??????? ?????BB??" #????????? | | ??????????????BB??" #????????? | | ??????????????????""" o #????????? | | ????????????????????" "@ o #????????? | | ????????????????????" "" o o #????????? | | ????????????????????" #????????? | | ??????????????BB????" #????????? | | ??????????????BB????" """ """ #????????? | | ????????????????????" """T""" #????????? | | ????????????????????########## ####### #????????? | | ?????????????????????????????##### ??# #????????? | | ????????????????????????????? ?# ########## | | ???????????????????????????# " # | | ???????????????????????????? # # | | ?????????????????????????? # # # / | | ############????????????? BB # | | #?????#+##+#?? BB # | | #?????# #??? # | | #?????# #??? ** " | | ####### #???? # **! " | | + #?????# ** # | | # #?????# " | | # #?????# # | | / +?????# + | | ###/######## #?????# ########## | | #?????# ####### ""##/#####?????? | | #?????# # #?????? | | ## #?????# + #?????? | +----------------------------------------------------+ Best States ------------- Heat Dissipation 98 Energy Generation 65 Energy Capacity 1245 Matter Stores 300 Matter Capacity 300 Sight Range 20 Robot Scan Range 16 Terrain Scan Range 24 Terrain Scan Density 260 ECM Strength 2 Jamming Range 14 Armor Coverage 400 Resistance: KI 35 Resistance: TH 65 Resistance: EX 35 Resistance: EM 55 Resistance: I 35 Resistance: S 35 Resistance: P 35 Utility Shielding 66 Phase Shifting 15 Evasion (%) 82 Targeting Accuracy 24 Target Analysis 12 Core Analysis 8 Offensive Hacking 52 Defensive Hacking 10 Relay Coupler Types 10 Relay Coupler Value 493 Authchip Count 2 Trap Extractor Capacity 6 Item Schematics ----------------- Hacking Suite | -8/Materials | Scanalyzed System Shield | -8/Materials | Scanalyzed Datajack | -8/Materials | Scanalyzed Imp. Transmission Jammer | -7/Factory | Hacked Imp. Airjet | -6/Factory | Scanalyzed Quantum Capacitor | -5/Factory | Hacked Imp. Trap Scanner | -5/Factory | Scanalyzed Imp. Remote Datajack | -5/Factory | Scanalyzed Adv. Force Field | -4/Factory | Hacked Assault Drone Bay | -4/Zhirov | Free Exp. Heat Sink | -4/Zhirov | Free Exp. Optical Array | -4/Zhirov | Free Imp. Arc Thrower | -4/Zhirov | Free Robot Schematics ------------------ Y-72 Warden | -3/Research | Hacked Fabricated ------------ Imp. Transmission Jammer | x1 | -7/Factory T-07 Excavator | x1 | -6/Factory | Preloaded System Shield | x1 | -4/Factory | Authchip System Shield | x1 | -4/Factory | Authchip Adv. Force Field | x2 | -4/Factory Y-72 Warden | x2 | -3/Research | Authchip Exp. Heat Sink | x1 | -3/Research Alien Tech Used ----------------- Integrated Dissipator Transdimensional Reconstructor Achievements -------------- 30k Club 40k Club 50k Club Achiever Alien Tech Armchair Analyst Beloved Can't Touch This Dangerous Findings Denied? Dodgeball, But With Guns Dynamic Key Epsilon Run Generalissimo I'm Back, Baby! Just Browsing Just What I Needed Knowing Is Half The Battle My Command Is Your Wish No Signal Omniscient Cartographer One Last FU Pwned Quick And Dirty Release The Drones! Respectable Loadout Rockin' Loadout Slippery One Subspace Traveler The Science Guy Total Silence Tourist Unlikely Earthworm Use The Force We Are Legion Challenges ------------ None Game ------ Seed ProcessingReinforcedBuckler Manual? 0 Play Time 17:52:46 Cumulative 54.2 hours Start 2023.06.19 @ 21:50:53 End 2023.06.26 @ 10:50:28 Sessions 17 Manual Loads 0 Difficulty Explorer Special Mode None Game No. 10 Rogue 8 Adventurer 1 Explorer 1 Win Type 0 Total 1 Types 1/0/0/0/0/0/0/0/0 Lore% 19 Gallery% 33 Achievement% 33 Wizard Run 0 Options --------- ASCII 0 Keyboard 0 Movement Mouse Keybinds 0 Fullscreen 1 Font 18/SmallcapsGlow Map View 76x50 Tactical HUD 0 Map Filters NONE Filters NONE Steam 1 RUN: e2fc5e1a-4a38-44a0-bc55-add67b2de91c